Workbook

Sheet Introduction
B2: KSU-Own Baler
B5: An Excel spreadsheet to evaluate the economic costs of owning and operating a large square or large round hay baler.
L8: Version- 6.30.16
B26: INSTRUCTIONS FOR THE USER:
B27: Be sure to "Enable Content" and "Enable Macros" for the spreadsheet to function correctly. This spreadsheet uses macros to print the three different pages, however printing can also be done manually by highlighting the desired range and using the menu print commands.
B30: In the "User input" tab all blue numbers are inputs and all black numbers are calculated from these inputs. Several input cells (i.e., blue number) have a red diamond in the upper right hand corner of the cell. By moving your mouse cursor over this diamond, a brief description of the input will be displayed on the screen.
B35: FOR MORE INFORMATION:
B36: For explanation of the inputs used in this spreadsheet see the supporting paper:
B37: Evaluating Baler Ownership with the Own Baler Spreadsheet
B38: *This publication provides information on how to use the tool, however some values in the tool have been updated since the paper was written.
B40: With Questions contact: | G40: Originally Developed by:
B42: Rich Llewelyn | G42: Kevin C. Dhuyvetter, Ph.D.
B43: Extension Assistant | G43: Former Agricultural Economist
B44: Kansas State University | G44: Kansas State University
B45: rvl@ksu.edu
B46: 785-532-1504 | G46: Terry L. Kastens, Ph.D.
G47: Emeritus Agricultural Economist
G48: Kansas State University
B51: Copyright 2016 AgManager.info, K-State Department of Agricultural Economics
B82: Red numbers are our inputs (don't want users changing any of this stuff)
B84: Coefficients from lotus working spreadsheet (Balers2006.123)
C85: size | D85: age | E85: usage | F85: constant | G85: lb/cu-ft | H85: RF1 | I85: RF2 | J85: useful life | L85: date
B86: round | C86: 0.005519058696 | D86: -0.05763658326 | E86: -0.001 | F86: 9.532553762 | G86: 12.02504014 | H86: 0.55 | I86: 1.8 | J86: 1500 | L86: 2011-07-12
B87: square | C87: 0.004769434658 | D87: -0.07769850504 | E87: -0.00025 | F87: 11.03652658 | G87: 14.67331118 | H87: 0.25 | I87: 1.8 | J87: 3000 | L87: 2011-07-12
B90: Information below is from Balers2006.123 spreadsheet
C91: Information assumed for calculating hours from bale counts for purchased balers
B93: Round Balers: | H93: Square Balers:
B94: avg mph when baling | F94: 7 | H94: avg mph when baling | L94: 6.3
B95: avg crop width baled in feet | F95: 28 | H95: avg crop width baled in feet | L95: 29
B96: calculated acre/hr when moving | F96: =F94*F95*5280/43560 -> 23.75757576 | H96: calculated acre/hr when moving | L96: =L94*L95*5280/43560 -> 22.14545455
B97: avg crop yield in T/acre/operation | F97: 1.3 | H97: avg crop yield in T/acre/operation | L97: 1.2
B98: avg wt of Vermeer 5x6 round bale in lb | F98: 1700 | H98: avg wt of 3x4 sq bale in lb | L98: 1325
B99: calculated bales per acre | F99: =F97*2000/F98 -> 1.529411765 | H99: calculated bales per acre | L99: =L97*2000/L98 -> 1.811320755
B100: calculated no-stopping bales/hr | F100: =F96*F99 -> 36.33511586 | H100: calculated bales per hour | L100: =L96*L99 -> 40.11252144
B101: minutes to make a bale | F101: =60/F100 -> 1.651295133 | H101: calculated tons per hour | L101: =L98*L100/2000 -> 26.57454545
B102: total seconds stopped to wrap with twine | F102: 35
B103: total time in minutes per bale | F103: =F101+F102/60 -> 2.234628467
B104: actual bales/hour | F104: =60/F103 -> 26.85010099
B105: actual acres/hour | F105: =F104/F99 -> 17.55583526
B106: calculated tons per hour | F106: =F98*F104/2000 -> 22.82258584
B109: Custom rate info to facilitate testing
B110: 2005 KAS custom rates are: | F110: per bale | G110: guess at wt | H110: $/ton
B111: Round (under 1500) twine | F111: 8.12 | G111: 1000 | H111: =F111/(G111/2000) -> 16.24
B112: Round (over 1500) twine | F112: 8.24 | G112: 1750 | H112: =F112/(G112/2000) -> 9.417142857
B113: Round (under 1500) net wrap | F113: 9 | G113: 1000 | H113: =F113/(G113/2000) -> 18
B114: Round (over 1500) net wrap | F114: 9.21 | G114: 1750 | H114: =F114/(G114/2000) -> 10.52571429
B115: Big square (about 1T) | F115: 12.8 | G115: 2000 | H115: =F115/(G115/2000) -> 12.8
B116: Rental rates from Fall 2006 NAEDA | F116: per bale
B117: Round (over 1600+) | F117: 5.75 | G117: 1800 | H117: =F117/(G117/2000) -> 6.388888889
B118: Round (1100-1500) | F118: 5.25 | G118: 1250 | H118: =F118/(G118/2000) -> 8.4
B119: Round (<1000) | F119: 4.75 | G119: 800 | H119: =F119/(G119/2000) -> 11.875
B120: Square (large) | F120: 7 | G120: 1250 | H120: =F120/(G120/2000) -> 11.2
B122: Bill Smith (Nov 04) said Vermeer 605M w/ net wrap would sell for $29,000
B123: After he uses it for one year (5000 bales) it will sell for $25,000
B124: My guess is that net wrap and related options are about $3,500
B128: NAEDA reported the same rental rates in 2006 as in 2005

Sheet User input
B2: User Input and related calculations section (blue shaded cells are inputs)
B4: Information pertaining to baler depreciation and repairs
I5: repair factors
B6: Baler class | G6: age | H6: usage | I6: RF1 | J6: RF2 | K6: useful life
B7: 1 | C7: Large round baler | G7: =+Introduction!D86 -> -0.05763658326 | H7: =+Introduction!E86 -> -0.001 | I7: =Introduction!H86 -> 0.55 | J7: =Introduction!I86 -> 1.8 | K7: =Introduction!J86 -> 1500
B8: 2 | C8: Large square baler | G8: =+Introduction!D87 -> -0.07769850504 | H8: =+Introduction!E87 -> -0.00025 | I8: =Introduction!H87 -> 0.25 | J8: =Introduction!I87 -> 1.8 | K8: =Introduction!J87 -> 3000
B9: Factors used in analysis => | F9: =IF($F12=1,C7,IF($F12=2,C8,"NA")) -> Large round baler | G9: =IF($F12=1,G7,IF($F12=2,G8,"NA")) -> -0.05763658326 | H9: =IF($F12=1,H7,IF($F12=2,H8,"NA")) -> -0.001 | I9: =IF($F12=1,I7,IF($F12=2,I8,"NA")) -> 0.55 | J9: =IF($F12=1,J7,IF($F12=2,J8,"NA")) -> 1.8 | K9: =IF($F12=1,K7,IF($F12=2,K8,"NA")) -> 1500
B11: Information on baler considered for purchase | H11: Tractor, labor, and fuel information
B12: Baler class: big round = 1; big square = 2 | F12: 1 | H12: PTO horsepower of tractor used on baler | L12: 150
B13: Round bale only: percent of bales with net wrap | F13: 1 | H13: Tractor rental rate in dollars per hp per hour | L13: 0.2
B14: Baler age in years | F14: 0 | H14: Tractor rental rate in dollars per hourmeter hour | L14: =L12*L13 -> 30
B15: Accumulated number of bales on purchased baler | F15: 0 | H15: Tractor fuel consumption per hourmeter hour (gal.) | L15: 8
B16: Bale width in inches | F16: 60 | H16: Average fuel price ($/gallon) | L16: 2.25
B17: Bale height in inches (max. diameter if round bale) | F17: 72 | H17: Oil and lubrication percent of fuel cost | L17: 0.1
B18: Maximum bale length in inches (square bale only) | F18: 96 | H18: Expected tractor-hours-to-baler-hours ratio | L18: 1.75
B19: Estimated no. of hours on baler when purchase | F19: =F15/IF(F12=1,Introduction!F104,IF(F12=2,Introduction!L100,"NA")) -> 0 | H19: Expected tractor hours used in baling operation | L19: =F43*L18 -> 295.5702316
B20: Purchase price of baler w/o trade-in | F20: 30000 | H20: Total labor hours per tractor hourmeter hour | L20: 2
B21: Market price of baler | F21: 30000 | H21: Labor cost per labor hour | L21: 13
B22: Cash downpayment | F22: 12000 | H22: Financial information
B23: Estimated new equivalent price (NEP) of baler | F23: =F21/EXP(G9*F14+H9*F19) -> 30000 | H23: Bank interest rate (%) | L23: 0.05
B24: No. of seasons (years) before trade (maximum 20) | F24: 3 | H24: Calculated after-tax discount rate | L24: =L23*(1-L25-L26) -> 0.03235
B25: Information on bales you intend to make | H25: State + U.S. marginal income tax rate (%) | L25: 0.2
B26: Bale capacity: max. no. of cu. ft. in bale | F26: =IF(F12=2,F16/12*F17/12*F18/12,IF(F12=1,PI()*(F17/12/2)^2*F16/12,"NA")) -> 141.3716694 | H26: Self-employment tax (0 if corporation) | L26: 0.153
B27: Expected bale density in lb per cu. ft. | F27: =IF(F12=1,Introduction!G86,IF(F12=2,Introduction!G87,"NA")) -> 12.02504014 | H27: Section-179 allowance limit (set by law) | L27: 500000
B28: User-input bale density in lb per cu. ft. | F28: =F27 -> 12.02504014 | H28: Section-179 deduction desired (you determine) | L28: 0
B29: Diameter of round bale you will make in inches | F29: 72 | H29: Bonus depreciation allowed (%) | L29: 0.5
B30: Length of square bale you will make in inches | F30: 96 | H30: Bonus 1st-yr dep. On new equip. (yes=1, no=0) | L30: 0
B31: Cu. ft. of the bale you plan to make | F31: =IF(F12=2,F16/12*F17/12*F30/12,IF(F12=1,PI()*(F29/12/2)^2*F16/12,"NA")) -> 141.3716694 | H31: Calculated bonus yr-1 depreciation | L31: =IF(AND(F14=0,L30=1),(F20-MIN(F20,MIN(L27,L28)))*L29,0) -> 0
B32: Estimated weight of your bales in lb. | F32: =F31*F28 -> 1700 | H32: Calculated net $ amount to depreciate | L32: =F20-MIN(F20,MIN(L27,L28))-L31 -> 30000
B33: Information on the scale of youroperation | H33: 1st year MACRS depreciation rate | L33: 0.1429
B34: Average travel speed in mph when baling | F34: 6.5 | H34: 2nd year MACRS depreciation rate | L34: 0.2449
B35: Average swath width in feet when baling | F35: 29 | H35: 3rd year MACRS depreciation rate | L35: 0.1749
B36: Average crop yield in T/acre/operation | F36: 1.2 | H36: 4th year MACRS depreciation rate | L36: 0.1249
B37: Bales per acre per cutting | F37: =F36*2000/F32 -> 1.411764706 | H37: 5th year MACRS depreciation rate | L37: 0.0893
B38: Bales per hour | F38: =IF(F$12=1,F$13*L73+(1-F$13)*L65,IF(F$12=2,F68,"NA")) -> 29.60379315 | H38: 6th year MACRS depreciation rate | L38: 0.0892
B39: Acres per hour | F39: =IF(F$12=1,F$13*L74+(1-F$13)*L66,IF(F$12=2,F69,"NA")) -> 20.96935348 | H39: 7th year MACRS depreciation rate | L39: 0.0893 | M39: =IF(OR(L41>1.01,L41<0.99),"<= Error!"," ") -> 
B40: Tons per hour | F40: =IF(F$12=1,F$13*L75+(1-F$13)*L67,IF(F$12=2,F70,"NA")) -> 25.16322418 | H40: 8th year MACRS depreciation rate | L40: 0.0446
B41: Expected no. of bales made by baler annually | F41: 5000 | H41: Calculated error check of depreciation rates | L41: =SUM(L33:L40) -> 1
B42: Implied acres baled per year | F42: =F41/F37 -> 3541.666667 | H42: =IF(OR(L41>1.01,L41<0.99),"Total depreciation rate should add to 100%!"," ") -> 
B43: Implied baler hours per year | F43: =F41/F38 -> 168.8972752 | H43: Calculated after-tax NPVc from TT section | L43: ='Time and Tax (TT)'!U4 -> 7737.324975
B44: Miscellaneous | H44: Calculated after-tax amortized NPV from TT | L44: =F49*L43 -> 2747.747239
B45: Annual inflation % on machinery prices | F45: 0.01 | H45: Calculated pre-tax amortized NPV from TT | L45: =L44/(1-L25-L26) -> 4246.904542
B46: Trade ding (% of market value lost in a trade) | F46: 0.05 | H46: Prorated to opportunity interest | L46: =L45*'Time and Tax (TT)'!G7 -> 1243.82697
B47: Repair adjustment factor (0.8-1.2, usually 1) (RAF) | F47: 1 | H47: Prorated to market depreciation | L47: =L45*'Time and Tax (TT)'!H7 -> 1198.454291
B48: Tax, insurance, & shelter (TIS - % of value) | F48: 0.015 | H48: Prorated to repairs | L48: =L45*'Time and Tax (TT)'!Q7 -> 1431.47519
B49: Calculated after-tax amortization factor | F49: =L24/(1-(1+L24)^-F24) -> 0.3551288394 | H49: Prorated to tax, insurance, & shelter (TIS) | L49: =L45*'Time and Tax (TT)'!O7 -> 373.1480909
B50: Calculated 1-year after-tax discount factor | F50: =1/(1+L24) -> 0.9686637284
B54: Twine and net wrap section
B56: Information about twine
B57: Cost of a 4,000 foot ball of square baler twine, $ | F57: 26 | H57: Section just below is for round bales using twine (twin tie)
B58: Cost of a 20,000 foot ball of round baler twine, $ | F58: 23 | H58: Twine spacing in inches | L58: 5
B59: Cost of a 7,000 foot roll of round baler net wrap, $ | F59: 210 | H59: Number of inches from end of bale for first wrap | L59: 4
B60: Cost of twine or net wrap per bale for selected baler | F60: =IF(F$12=1,F$13*F59+(1-F$13)*F58,IF(F$12=2,F57,"NA"))/IF(F$12=1,F$13*L70+(1-F$13)*L62,IF(F$12=2,F66,"NA")) -> 1.470265362 | H60: Number of extra wraps at each end of the bale | L60: 4
H61: Total number of wraps per bale | L61: =IF(F12=1,(F16-L59*2)/L58+1+L60*2,"N/A") -> 19.4
B62: Section just below is for square bales only | H62: No. of bales per 20,000 ft. ball of twine | L62: =IF(F12=1,20000/(PI()*F29/12*L61),"N/A") -> 54.69242031
B63: Number of twines per bale | F63: 6 | H63: No. of seconds stopped to tie bale | L63: =IF(F12=1,F74/2*L61+F75,"N/A") -> 29.12009892
B64: Number of inches used for a knot | F64: 6 | H64: Minutes to make, tie, and eject a bale | L64: =IF(F12=1,60/(F34*F35*5280/43560*F37)+L63/60,"N/A") -> 2.345414558
B65: Feet of twine used per bale | F65: =IF(F12=2,(F17*2+F30*2+F64)*F63/12,"N/A") -> N/A | H65: Bales per hour | L65: =IF(F12=1,60/L64,"N/A") -> 25.5818315
B66: No. of bales per 4,000 ft. ball of twine | F66: =IF(F12=2,4000/F65,"N/A") -> N/A | H66: Acres per hour | L66: =IF(F12=1,L65/F37,"N/A") -> 18.12046398
B67: Minutes to make a bale | F67: =IF(F12=2,60/F68,"N/A") -> N/A | H67: Tons per hour | L67: =IF(F12=1,F32*L65/2000,"N/A") -> 21.74455677
B68: Bales per hour | F68: =IF(F12=2,F69*F37,"N/A") -> N/A | H68: Section just below is for round bales using net wrap
B69: Acres per hour | F69: =IF(F12=2,F34*F35*5280/43560,"N/A") -> N/A | H69: Number of wraps per bale | L69: 2.6
B70: Tons per hour | F70: =IF(F12=2,F32*F68/2000,"N/A") -> N/A | H70: No. of bales per 7,000 ft. roll of net wrap | L70: =IF(F12=1,7000/(PI()*F29/12*L69),"N/A") -> 142.8313592
H71: Total no. of seconds stopped to wrap bale | L71: =IF(F12=1,F74*L69+F75,"N/A") -> 10.00126363
B72: Section just below is for round bales only | H72: Minutes to make, wrap, and eject a bale | L72: =IF(F12=1,60/(F34*F35*5280/43560*F37)+L71/60,"N/A") -> 2.026767303
B73: Baler belt speed in feet per minute | F73: 420 | H73: Bales per hour | L73: =IF(F12=1,60/L72,"N/A") -> 29.60379315
B74: Seconds per wrap for baler | F74: =IF(F12=1,PI()*F29/12*60/F73,"N/A") -> 2.692793703 | H74: Acres per hour | L74: =IF(F12=1,L73/F37,"N/A") -> 20.96935348
B75: No. of seconds delay before wrapping begins | F75: 3 | H75: Tons per hour | L75: =IF(F12=1,F32*L73/2000,"N/A") -> 25.16322418

Sheet Time and Tax (TT)
B2: Time and tax (TT) section
T4: After-tax net present value of costs (NPVc) => | U4: =SUM(U12:U32) -> 7737.324975
F6: after-tax NPV => | G6: =SUMPRODUCT($C12:$C32,G12:G32)*(1-'User input'!$L25-'User input'!$L26) -> 2605.996101 | H6: =SUMPRODUCT($C12:$C32,H12:H32)*(1-'User input'!$L25-'User input'!$L26) -> 2510.933824 | N6: after-tax NPV => | O6: =SUMPRODUCT($C12:$C32,O12:O32)*(1-'User input'!$L25-'User input'!$L26) -> 781.7988302 | Q6: =SUMPRODUCT($C12:$C32,Q12:Q32)*(1-'User input'!$L25-'User input'!$L26) -> 2999.146067
F7: % of total => | G7: =G6/($G6+$H6+$O6+$Q6) -> 0.2928784853 | H7: =H6/($G6+$H6+$O6+$Q6) -> 0.2821947796 | N7: % of total => | O7: =O6/($G6+$H6+$O6+$Q6) -> 0.0878635456 | Q7: =Q6/($G6+$H6+$O6+$Q6) -> 0.3370631895
K8: EOY*
C9: after-tax | D9: EOY* | E9: EOY* | F9: est. | I9: tax | J9: Sec. 179 | K9: or year | Q9: =SUM(Q12:Q32)/'User input'!F24 -> 1666.732206 | R9: =SUM(R12:R32)/'User input'!F24 -> 9.868319092
C10: discount | D10: machine | E10: machine | F10: machine | G10: opp. | H10: market | I10: deprec. | J10: and tax | K10: of sale | L10: loan | M10: loan | N10: downpmt | P10: accum. | Q10: annual | R10: repairs | S10: tax | T10: net | U10: discounted
B11: year | C11: factor | D11: age | E11: hours | F11: value | G11: interest | H11: deprec. | I11: rate | J11: deprec. | K11: tax basis | L11: interest | M11: principal | N11: or sale | O11: TIS** | P11: repairs | Q11: repairs | R11: per hour | S11: savings | T11: cash out | U11: cash out
B12: 0 | C12: =IF(B12>'User input'!F$24,"",'User input'!F$50^B12) -> 1 | D12: =IF(B12>'User input'!F$24,"",IF(B12=0,'User input'!F$14,D11+1)) -> 0 | E12: =IF(B12>'User input'!F$24,"",IF(B12=0,'User input'!F$19,E11+'User input'!F$43)) -> 0 | F12: =IF(B12>'User input'!F$24,"",EXP('User input'!G$9*(D12-'User input'!F$14)+'User input'!H$9*((E12-'User input'!F$19)/100))*'User input'!F$21*(1+'User input'!F$45)^B12) -> 30000 | G12: =IF(B12>'User input'!F$24,"",IF(B12>0,F11*'User input'!L$23,0)) -> 0 | H12: =IF(B12>'User input'!F$24,"",IF(B12>0,F11-F12,0)) -> 0 | I12: =IF(B12>'User input'!F$24,"",IF(B12>7,0,IF(SUM(I$11:I11)<1,IF(B12='User input'!F$24,'User input'!L33/2,'User input'!L33),0))) -> 0.1429 | J12: =IF(B12>'User input'!F$24,"",IF(B12=0,MIN('User input'!F$20,'User input'!L$28)+'User input'!L$31+'User input'!L$32*I12,'User input'!L$32*I12)) -> 4287 | K12: =IF(B12>'User input'!F$24,"",IF(B12=0,'User input'!F$20-J12,K11-J12)) -> 25713 | L12: =IF(B12>'User input'!F$24,"",IF(B12>0,('User input'!F$20-'User input'!F$22)*'User input'!L$23,0)) -> 0 | M12: =IF(B12>'User input'!F$24,"",IF(B12='User input'!F$24,'User input'!F$20-'User input'!F$22,0)) -> 0 | N12: =IF(B12>'User input'!F$24,"",IF(B12=0,'User input'!F$22,IF(B12='User input'!F$24,-F12*(1-'User input'!F$46),0))) -> 12000 | O12: =IF(B12>'User input'!F$24,"",IF(B12>0,'User input'!F$48*F11,0)) -> 0 | P12: =IF(B12>'User input'!F$24,"",(IF(E12>'User input'!K$9,(E12-'User input'!K$9)*('User input'!F$23*(1+'User input'!F$45)^B12*'User input'!J$9*'User input'!I$9*('User input'!K$9/1000)^('User input'!J$9-1))/1000+'User input'!I$9*'User input'!F$23*(1+'User input'!F$45)^B12*('User input'!K$9/1000)^'User input'!J$9,'User input'!I$9*'User input'!F$23*(1+'User input'!F$45)^B12*(E12/1000)^'User input'!J$9))*'User input'!F$47) -> 0 | Q12: =IF(B12>'User input'!F$24,"",IF(B12>0,(P12-P11),0)) -> 0 | R12: =IF(B12>'User input'!F$24,"",Q12/'User input'!F$43) -> 0 | S12: =IF(B12>'User input'!F$24,"",(J12+L12+O12+Q12)*('User input'!L$25+'User input'!L$26)-IF(B12='User input'!F$24,(F12-K12)*'User input'!L$25,0)) -> 1513.311 | T12: =IF(B12>'User input'!F$24,"",L12+M12+N12+O12+Q12-S12) -> 10486.689 | U12: =IF(B12>'User input'!F$24,"",C12*T12) -> 10486.689
B13: =IF(B12>='User input'!F$24,"",B12+1) -> 1 | C13: =IF(B13>'User input'!F$24,"",'User input'!F$50^B13) -> 0.9686637284 | D13: =IF(B13>'User input'!F$24,"",IF(B13=0,'User input'!F$14,D12+1)) -> 1 | E13: =IF(B13>'User input'!F$24,"",IF(B13=0,'User input'!F$19,E12+'User input'!F$43)) -> 168.8972752 | F13: =IF(B13>'User input'!F$24,"",EXP('User input'!G$9*(D13-'User input'!F$14)+'User input'!H$9*((E13-'User input'!F$19)/100))*'User input'!F$21*(1+'User input'!F$45)^B13) -> 28554.71743 | G13: =IF(B13>'User input'!F$24,"",IF(B13>0,F12*'User input'!L$23,0)) -> 1500 | H13: =IF(B13>'User input'!F$24,"",IF(B13>0,F12-F13,0)) -> 1445.282568 | I13: =IF(B13>'User input'!F$24,"",IF(B13>7,0,IF(SUM(I$11:I12)<1,IF(B13='User input'!F$24,'User input'!L34/2,'User input'!L34),0))) -> 0.2449 | J13: =IF(B13>'User input'!F$24,"",IF(B13=0,MIN('User input'!F$20,'User input'!L$28)+'User input'!L$31+'User input'!L$32*I13,'User input'!L$32*I13)) -> 7347 | K13: =IF(B13>'User input'!F$24,"",IF(B13=0,'User input'!F$20-J13,K12-J13)) -> 18366 | L13: =IF(B13>'User input'!F$24,"",IF(B13>0,('User input'!F$20-'User input'!F$22)*'User input'!L$23,0)) -> 900 | M13: =IF(B13>'User input'!F$24,"",IF(B13='User input'!F$24,'User input'!F$20-'User input'!F$22,0)) -> 0 | N13: =IF(B13>'User input'!F$24,"",IF(B13=0,'User input'!F$22,IF(B13='User input'!F$24,-F13*(1-'User input'!F$46),0))) -> 0 | O13: =IF(B13>'User input'!F$24,"",IF(B13>0,'User input'!F$48*F12,0)) -> 450 | P13: =IF(B13>'User input'!F$24,"",(IF(E13>'User input'!K$9,(E13-'User input'!K$9)*('User input'!F$23*(1+'User input'!F$45)^B13*'User input'!J$9*'User input'!I$9*('User input'!K$9/1000)^('User input'!J$9-1))/1000+'User input'!I$9*'User input'!F$23*(1+'User input'!F$45)^B13*('User input'!K$9/1000)^'User input'!J$9,'User input'!I$9*'User input'!F$23*(1+'User input'!F$45)^B13*(E13/1000)^'User input'!J$9))*'User input'!F$47) -> 678.4628555 | Q13: =IF(B13>'User input'!F$24,"",IF(B13>0,(P13-P12),0)) -> 678.4628555 | R13: =IF(B13>'User input'!F$24,"",Q13/'User input'!F$43) -> 4.017014807 | S13: =IF(B13>'User input'!F$24,"",(J13+L13+O13+Q13)*('User input'!L$25+'User input'!L$26)-IF(B13='User input'!F$24,(F13-K13)*'User input'!L$25,0)) -> 3309.538388 | T13: =IF(B13>'User input'!F$24,"",L13+M13+N13+O13+Q13-S13) -> -1281.075532 | U13: =IF(B13>'User input'!F$24,"",C13*T13) -> -1240.931402
B14: =IF(B13>='User input'!F$24,"",B13+1) -> 2 | C14: =IF(B14>'User input'!F$24,"",'User input'!F$50^B14) -> 0.9383094187 | D14: =IF(B14>'User input'!F$24,"",IF(B14=0,'User input'!F$14,D13+1)) -> 2 | E14: =IF(B14>'User input'!F$24,"",IF(B14=0,'User input'!F$19,E13+'User input'!F$43)) -> 337.7945505 | F14: =IF(B14>'User input'!F$24,"",EXP('User input'!G$9*(D14-'User input'!F$14)+'User input'!H$9*((E14-'User input'!F$19)/100))*'User input'!F$21*(1+'User input'!F$45)^B14) -> 27179.06292 | G14: =IF(B14>'User input'!F$24,"",IF(B14>0,F13*'User input'!L$23,0)) -> 1427.735872 | H14: =IF(B14>'User input'!F$24,"",IF(B14>0,F13-F14,0)) -> 1375.654511 | I14: =IF(B14>'User input'!F$24,"",IF(B14>7,0,IF(SUM(I$11:I13)<1,IF(B14='User input'!F$24,'User input'!L35/2,'User input'!L35),0))) -> 0.1749 | J14: =IF(B14>'User input'!F$24,"",IF(B14=0,MIN('User input'!F$20,'User input'!L$28)+'User input'!L$31+'User input'!L$32*I14,'User input'!L$32*I14)) -> 5247 | K14: =IF(B14>'User input'!F$24,"",IF(B14=0,'User input'!F$20-J14,K13-J14)) -> 13119 | L14: =IF(B14>'User input'!F$24,"",IF(B14>0,('User input'!F$20-'User input'!F$22)*'User input'!L$23,0)) -> 900 | M14: =IF(B14>'User input'!F$24,"",IF(B14='User input'!F$24,'User input'!F$20-'User input'!F$22,0)) -> 0 | N14: =IF(B14>'User input'!F$24,"",IF(B14=0,'User input'!F$22,IF(B14='User input'!F$24,-F14*(1-'User input'!F$46),0))) -> 0 | O14: =IF(B14>'User input'!F$24,"",IF(B14>0,'User input'!F$48*F13,0)) -> 428.3207615 | P14: =IF(B14>'User input'!F$24,"",(IF(E14>'User input'!K$9,(E14-'User input'!K$9)*('User input'!F$23*(1+'User input'!F$45)^B14*'User input'!J$9*'User input'!I$9*('User input'!K$9/1000)^('User input'!J$9-1))/1000+'User input'!I$9*'User input'!F$23*(1+'User input'!F$45)^B14*('User input'!K$9/1000)^'User input'!J$9,'User input'!I$9*'User input'!F$23*(1+'User input'!F$45)^B14*(E14/1000)^'User input'!J$9))*'User input'!F$47) -> 2386.170333 | Q14: =IF(B14>'User input'!F$24,"",IF(B14>0,(P14-P13),0)) -> 1707.707478 | R14: =IF(B14>'User input'!F$24,"",Q14/'User input'!F$43) -> 10.11092379 | S14: =IF(B14>'User input'!F$24,"",(J14+L14+O14+Q14)*('User input'!L$25+'User input'!L$26)-IF(B14='User input'!F$24,(F14-K14)*'User input'!L$25,0)) -> 2923.908968 | T14: =IF(B14>'User input'!F$24,"",L14+M14+N14+O14+Q14-S14) -> 112.1192706 | U14: =IF(B14>'User input'!F$24,"",C14*T14) -> 105.2025676
B15: =IF(B14>='User input'!F$24,"",B14+1) -> 3 | C15: =IF(B15>'User input'!F$24,"",'User input'!F$50^B15) -> 0.9089062999 | D15: =IF(B15>'User input'!F$24,"",IF(B15=0,'User input'!F$14,D14+1)) -> 3 | E15: =IF(B15>'User input'!F$24,"",IF(B15=0,'User input'!F$19,E14+'User input'!F$43)) -> 506.6918257 | F15: =IF(B15>'User input'!F$24,"",EXP('User input'!G$9*(D15-'User input'!F$14)+'User input'!H$9*((E15-'User input'!F$19)/100))*'User input'!F$21*(1+'User input'!F$45)^B15) -> 25869.68206 | G15: =IF(B15>'User input'!F$24,"",IF(B15>0,F14*'User input'!L$23,0)) -> 1358.953146 | H15: =IF(B15>'User input'!F$24,"",IF(B15>0,F14-F15,0)) -> 1309.380862 | I15: =IF(B15>'User input'!F$24,"",IF(B15>7,0,IF(SUM(I$11:I14)<1,IF(B15='User input'!F$24,'User input'!L36/2,'User input'!L36),0))) -> 0.06245 | J15: =IF(B15>'User input'!F$24,"",IF(B15=0,MIN('User input'!F$20,'User input'!L$28)+'User input'!L$31+'User input'!L$32*I15,'User input'!L$32*I15)) -> 1873.5 | K15: =IF(B15>'User input'!F$24,"",IF(B15=0,'User input'!F$20-J15,K14-J15)) -> 11245.5 | L15: =IF(B15>'User input'!F$24,"",IF(B15>0,('User input'!F$20-'User input'!F$22)*'User input'!L$23,0)) -> 900 | M15: =IF(B15>'User input'!F$24,"",IF(B15='User input'!F$24,'User input'!F$20-'User input'!F$22,0)) -> 18000 | N15: =IF(B15>'User input'!F$24,"",IF(B15=0,'User input'!F$22,IF(B15='User input'!F$24,-F15*(1-'User input'!F$46),0))) -> -24576.19796 | O15: =IF(B15>'User input'!F$24,"",IF(B15>0,'User input'!F$48*F14,0)) -> 407.6859438 | P15: =IF(B15>'User input'!F$24,"",(IF(E15>'User input'!K$9,(E15-'User input'!K$9)*('User input'!F$23*(1+'User input'!F$45)^B15*'User input'!J$9*'User input'!I$9*('User input'!K$9/1000)^('User input'!J$9-1))/1000+'User input'!I$9*'User input'!F$23*(1+'User input'!F$45)^B15*('User input'!K$9/1000)^'User input'!J$9,'User input'!I$9*'User input'!F$23*(1+'User input'!F$45)^B15*(E15/1000)^'User input'!J$9))*'User input'!F$47) -> 5000.196617 | Q15: =IF(B15>'User input'!F$24,"",IF(B15>0,(P15-P14),0)) -> 2614.026284 | R15: =IF(B15>'User input'!F$24,"",Q15/'User input'!F$43) -> 15.47701868 | S15: =IF(B15>'User input'!F$24,"",(J15+L15+O15+Q15)*('User input'!L$25+'User input'!L$26)-IF(B15='User input'!F$24,(F15-K15)*'User input'!L$25,0)) -> -879.1264954 | T15: =IF(B15>'User input'!F$24,"",L15+M15+N15+O15+Q15-S15) -> -1775.359233 | U15: =IF(B15>'User input'!F$24,"",C15*T15) -> -1613.635191
B16: =IF(B15>='User input'!F$24,"",B15+1) ->  | C16: =IF(B16>'User input'!F$24,"",'User input'!F$50^B16) ->  | D16: =IF(B16>'User input'!F$24,"",IF(B16=0,'User input'!F$14,D15+1)) ->  | E16: =IF(B16>'User input'!F$24,"",IF(B16=0,'User input'!F$19,E15+'User input'!F$43)) ->  | F16: =IF(B16>'User input'!F$24,"",EXP('User input'!G$9*(D16-'User input'!F$14)+'User input'!H$9*((E16-'User input'!F$19)/100))*'User input'!F$21*(1+'User input'!F$45)^B16) ->  | G16: =IF(B16>'User input'!F$24,"",IF(B16>0,F15*'User input'!L$23,0)) ->  | H16: =IF(B16>'User input'!F$24,"",IF(B16>0,F15-F16,0)) ->  | I16: =IF(B16>'User input'!F$24,"",IF(B16>7,0,IF(SUM(I$11:I15)<1,IF(B16='User input'!F$24,'User input'!L37/2,'User input'!L37),0))) ->  | J16: =IF(B16>'User input'!F$24,"",IF(B16=0,MIN('User input'!F$20,'User input'!L$28)+'User input'!L$31+'User input'!L$32*I16,'User input'!L$32*I16)) ->  | K16: =IF(B16>'User input'!F$24,"",IF(B16=0,'User input'!F$20-J16,K15-J16)) ->  | L16: =IF(B16>'User input'!F$24,"",IF(B16>0,('User input'!F$20-'User input'!F$22)*'User input'!L$23,0)) ->  | M16: =IF(B16>'User input'!F$24,"",IF(B16='User input'!F$24,'User input'!F$20-'User input'!F$22,0)) ->  | N16: =IF(B16>'User input'!F$24,"",IF(B16=0,'User input'!F$22,IF(B16='User input'!F$24,-F16*(1-'User input'!F$46),0))) ->  | O16: =IF(B16>'User input'!F$24,"",IF(B16>0,'User input'!F$48*F15,0)) ->  | P16: =IF(B16>'User input'!F$24,"",(IF(E16>'User input'!K$9,(E16-'User input'!K$9)*('User input'!F$23*(1+'User input'!F$45)^B16*'User input'!J$9*'User input'!I$9*('User input'!K$9/1000)^('User input'!J$9-1))/1000+'User input'!I$9*'User input'!F$23*(1+'User input'!F$45)^B16*('User input'!K$9/1000)^'User input'!J$9,'User input'!I$9*'User input'!F$23*(1+'User input'!F$45)^B16*(E16/1000)^'User input'!J$9))*'User input'!F$47) ->  | Q16: =IF(B16>'User input'!F$24,"",IF(B16>0,(P16-P15),0)) ->  | R16: =IF(B16>'User input'!F$24,"",Q16/'User input'!F$43) ->  | S16: =IF(B16>'User input'!F$24,"",(J16+L16+O16+Q16)*('User input'!L$25+'User input'!L$26)-IF(B16='User input'!F$24,(F16-K16)*'User input'!L$25,0)) ->  | T16: =IF(B16>'User input'!F$24,"",L16+M16+N16+O16+Q16-S16) ->  | U16: =IF(B16>'User input'!F$24,"",C16*T16) -> 
B17: =IF(B16>='User input'!F$24,"",B16+1) ->  | C17: =IF(B17>'User input'!F$24,"",'User input'!F$50^B17) ->  | D17: =IF(B17>'User input'!F$24,"",IF(B17=0,'User input'!F$14,D16+1)) ->  | E17: =IF(B17>'User input'!F$24,"",IF(B17=0,'User input'!F$19,E16+'User input'!F$43)) ->  | F17: =IF(B17>'User input'!F$24,"",EXP('User input'!G$9*(D17-'User input'!F$14)+'User input'!H$9*((E17-'User input'!F$19)/100))*'User input'!F$21*(1+'User input'!F$45)^B17) ->  | G17: =IF(B17>'User input'!F$24,"",IF(B17>0,F16*'User input'!L$23,0)) ->  | H17: =IF(B17>'User input'!F$24,"",IF(B17>0,F16-F17,0)) ->  | I17: =IF(B17>'User input'!F$24,"",IF(B17>7,0,IF(SUM(I$11:I16)<1,IF(B17='User input'!F$24,'User input'!L38/2,'User input'!L38),0))) ->  | J17: =IF(B17>'User input'!F$24,"",IF(B17=0,MIN('User input'!F$20,'User input'!L$28)+'User input'!L$31+'User input'!L$32*I17,'User input'!L$32*I17)) ->  | K17: =IF(B17>'User input'!F$24,"",IF(B17=0,'User input'!F$20-J17,K16-J17)) ->  | L17: =IF(B17>'User input'!F$24,"",IF(B17>0,('User input'!F$20-'User input'!F$22)*'User input'!L$23,0)) ->  | M17: =IF(B17>'User input'!F$24,"",IF(B17='User input'!F$24,'User input'!F$20-'User input'!F$22,0)) ->  | N17: =IF(B17>'User input'!F$24,"",IF(B17=0,'User input'!F$22,IF(B17='User input'!F$24,-F17*(1-'User input'!F$46),0))) ->  | O17: =IF(B17>'User input'!F$24,"",IF(B17>0,'User input'!F$48*F16,0)) ->  | P17: =IF(B17>'User input'!F$24,"",(IF(E17>'User input'!K$9,(E17-'User input'!K$9)*('User input'!F$23*(1+'User input'!F$45)^B17*'User input'!J$9*'User input'!I$9*('User input'!K$9/1000)^('User input'!J$9-1))/1000+'User input'!I$9*'User input'!F$23*(1+'User input'!F$45)^B17*('User input'!K$9/1000)^'User input'!J$9,'User input'!I$9*'User input'!F$23*(1+'User input'!F$45)^B17*(E17/1000)^'User input'!J$9))*'User input'!F$47) ->  | Q17: =IF(B17>'User input'!F$24,"",IF(B17>0,(P17-P16),0)) ->  | R17: =IF(B17>'User input'!F$24,"",Q17/'User input'!F$43) ->  | S17: =IF(B17>'User input'!F$24,"",(J17+L17+O17+Q17)*('User input'!L$25+'User input'!L$26)-IF(B17='User input'!F$24,(F17-K17)*'User input'!L$25,0)) ->  | T17: =IF(B17>'User input'!F$24,"",L17+M17+N17+O17+Q17-S17) ->  | U17: =IF(B17>'User input'!F$24,"",C17*T17) -> 
B18: =IF(B17>='User input'!F$24,"",B17+1) ->  | C18: =IF(B18>'User input'!F$24,"",'User input'!F$50^B18) ->  | D18: =IF(B18>'User input'!F$24,"",IF(B18=0,'User input'!F$14,D17+1)) ->  | E18: =IF(B18>'User input'!F$24,"",IF(B18=0,'User input'!F$19,E17+'User input'!F$43)) ->  | F18: =IF(B18>'User input'!F$24,"",EXP('User input'!G$9*(D18-'User input'!F$14)+'User input'!H$9*((E18-'User input'!F$19)/100))*'User input'!F$21*(1+'User input'!F$45)^B18) ->  | G18: =IF(B18>'User input'!F$24,"",IF(B18>0,F17*'User input'!L$23,0)) ->  | H18: =IF(B18>'User input'!F$24,"",IF(B18>0,F17-F18,0)) ->  | I18: =IF(B18>'User input'!F$24,"",IF(B18>7,0,IF(SUM(I$11:I17)<1,IF(B18='User input'!F$24,'User input'!L39/2,'User input'!L39),0))) ->  | J18: =IF(B18>'User input'!F$24,"",IF(B18=0,MIN('User input'!F$20,'User input'!L$28)+'User input'!L$31+'User input'!L$32*I18,'User input'!L$32*I18)) ->  | K18: =IF(B18>'User input'!F$24,"",IF(B18=0,'User input'!F$20-J18,K17-J18)) ->  | L18: =IF(B18>'User input'!F$24,"",IF(B18>0,('User input'!F$20-'User input'!F$22)*'User input'!L$23,0)) ->  | M18: =IF(B18>'User input'!F$24,"",IF(B18='User input'!F$24,'User input'!F$20-'User input'!F$22,0)) ->  | N18: =IF(B18>'User input'!F$24,"",IF(B18=0,'User input'!F$22,IF(B18='User input'!F$24,-F18*(1-'User input'!F$46),0))) ->  | O18: =IF(B18>'User input'!F$24,"",IF(B18>0,'User input'!F$48*F17,0)) ->  | P18: =IF(B18>'User input'!F$24,"",(IF(E18>'User input'!K$9,(E18-'User input'!K$9)*('User input'!F$23*(1+'User input'!F$45)^B18*'User input'!J$9*'User input'!I$9*('User input'!K$9/1000)^('User input'!J$9-1))/1000+'User input'!I$9*'User input'!F$23*(1+'User input'!F$45)^B18*('User input'!K$9/1000)^'User input'!J$9,'User input'!I$9*'User input'!F$23*(1+'User input'!F$45)^B18*(E18/1000)^'User input'!J$9))*'User input'!F$47) ->  | Q18: =IF(B18>'User input'!F$24,"",IF(B18>0,(P18-P17),0)) ->  | R18: =IF(B18>'User input'!F$24,"",Q18/'User input'!F$43) ->  | S18: =IF(B18>'User input'!F$24,"",(J18+L18+O18+Q18)*('User input'!L$25+'User input'!L$26)-IF(B18='User input'!F$24,(F18-K18)*'User input'!L$25,0)) ->  | T18: =IF(B18>'User input'!F$24,"",L18+M18+N18+O18+Q18-S18) ->  | U18: =IF(B18>'User input'!F$24,"",C18*T18) -> 
B19: =IF(B18>='User input'!F$24,"",B18+1) ->  | C19: =IF(B19>'User input'!F$24,"",'User input'!F$50^B19) ->  | D19: =IF(B19>'User input'!F$24,"",IF(B19=0,'User input'!F$14,D18+1)) ->  | E19: =IF(B19>'User input'!F$24,"",IF(B19=0,'User input'!F$19,E18+'User input'!F$43)) ->  | F19: =IF(B19>'User input'!F$24,"",EXP('User input'!G$9*(D19-'User input'!F$14)+'User input'!H$9*((E19-'User input'!F$19)/100))*'User input'!F$21*(1+'User input'!F$45)^B19) ->  | G19: =IF(B19>'User input'!F$24,"",IF(B19>0,F18*'User input'!L$23,0)) ->  | H19: =IF(B19>'User input'!F$24,"",IF(B19>0,F18-F19,0)) ->  | I19: =IF(B19>'User input'!F$24,"",IF(B19>7,0,IF(SUM(I$11:I18)<1,IF(B19='User input'!F$24,'User input'!L40/2,'User input'!L40),0))) ->  | J19: =IF(B19>'User input'!F$24,"",IF(B19=0,MIN('User input'!F$20,'User input'!L$28)+'User input'!L$31+'User input'!L$32*I19,'User input'!L$32*I19)) ->  | K19: =IF(B19>'User input'!F$24,"",IF(B19=0,'User input'!F$20-J19,K18-J19)) ->  | L19: =IF(B19>'User input'!F$24,"",IF(B19>0,('User input'!F$20-'User input'!F$22)*'User input'!L$23,0)) ->  | M19: =IF(B19>'User input'!F$24,"",IF(B19='User input'!F$24,'User input'!F$20-'User input'!F$22,0)) ->  | N19: =IF(B19>'User input'!F$24,"",IF(B19=0,'User input'!F$22,IF(B19='User input'!F$24,-F19*(1-'User input'!F$46),0))) ->  | O19: =IF(B19>'User input'!F$24,"",IF(B19>0,'User input'!F$48*F18,0)) ->  | P19: =IF(B19>'User input'!F$24,"",(IF(E19>'User input'!K$9,(E19-'User input'!K$9)*('User input'!F$23*(1+'User input'!F$45)^B19*'User input'!J$9*'User input'!I$9*('User input'!K$9/1000)^('User input'!J$9-1))/1000+'User input'!I$9*'User input'!F$23*(1+'User input'!F$45)^B19*('User input'!K$9/1000)^'User input'!J$9,'User input'!I$9*'User input'!F$23*(1+'User input'!F$45)^B19*(E19/1000)^'User input'!J$9))*'User input'!F$47) ->  | Q19: =IF(B19>'User input'!F$24,"",IF(B19>0,(P19-P18),0)) ->  | R19: =IF(B19>'User input'!F$24,"",Q19/'User input'!F$43) ->  | S19: =IF(B19>'User input'!F$24,"",(J19+L19+O19+Q19)*('User input'!L$25+'User input'!L$26)-IF(B19='User input'!F$24,(F19-K19)*'User input'!L$25,0)) ->  | T19: =IF(B19>'User input'!F$24,"",L19+M19+N19+O19+Q19-S19) ->  | U19: =IF(B19>'User input'!F$24,"",C19*T19) -> 
B20: =IF(B19>='User input'!F$24,"",B19+1) ->  | C20: =IF(B20>'User input'!F$24,"",'User input'!F$50^B20) ->  | D20: =IF(B20>'User input'!F$24,"",IF(B20=0,'User input'!F$14,D19+1)) ->  | E20: =IF(B20>'User input'!F$24,"",IF(B20=0,'User input'!F$19,E19+'User input'!F$43)) ->  | F20: =IF(B20>'User input'!F$24,"",EXP('User input'!G$9*(D20-'User input'!F$14)+'User input'!H$9*((E20-'User input'!F$19)/100))*'User input'!F$21*(1+'User input'!F$45)^B20) ->  | G20: =IF(B20>'User input'!F$24,"",IF(B20>0,F19*'User input'!L$23,0)) ->  | H20: =IF(B20>'User input'!F$24,"",IF(B20>0,F19-F20,0)) ->  | I20: =IF(B20>'User input'!F$24,"",IF(B20>7,0,IF(SUM(I$11:I19)<1,IF(B20='User input'!F$24,'User input'!L41/2,'User input'!L41),0))) ->  | J20: =IF(B20>'User input'!F$24,"",IF(B20=0,MIN('User input'!F$20,'User input'!L$28)+'User input'!L$31+'User input'!L$32*I20,'User input'!L$32*I20)) ->  | K20: =IF(B20>'User input'!F$24,"",IF(B20=0,'User input'!F$20-J20,K19-J20)) ->  | L20: =IF(B20>'User input'!F$24,"",IF(B20>0,('User input'!F$20-'User input'!F$22)*'User input'!L$23,0)) ->  | M20: =IF(B20>'User input'!F$24,"",IF(B20='User input'!F$24,'User input'!F$20-'User input'!F$22,0)) ->  | N20: =IF(B20>'User input'!F$24,"",IF(B20=0,'User input'!F$22,IF(B20='User input'!F$24,-F20*(1-'User input'!F$46),0))) ->  | O20: =IF(B20>'User input'!F$24,"",IF(B20>0,'User input'!F$48*F19,0)) ->  | P20: =IF(B20>'User input'!F$24,"",(IF(E20>'User input'!K$9,(E20-'User input'!K$9)*('User input'!F$23*(1+'User input'!F$45)^B20*'User input'!J$9*'User input'!I$9*('User input'!K$9/1000)^('User input'!J$9-1))/1000+'User input'!I$9*'User input'!F$23*(1+'User input'!F$45)^B20*('User input'!K$9/1000)^'User input'!J$9,'User input'!I$9*'User input'!F$23*(1+'User input'!F$45)^B20*(E20/1000)^'User input'!J$9))*'User input'!F$47) ->  | Q20: =IF(B20>'User input'!F$24,"",IF(B20>0,(P20-P19),0)) ->  | R20: =IF(B20>'User input'!F$24,"",Q20/'User input'!F$43) ->  | S20: =IF(B20>'User input'!F$24,"",(J20+L20+O20+Q20)*('User input'!L$25+'User input'!L$26)-IF(B20='User input'!F$24,(F20-K20)*'User input'!L$25,0)) ->  | T20: =IF(B20>'User input'!F$24,"",L20+M20+N20+O20+Q20-S20) ->  | U20: =IF(B20>'User input'!F$24,"",C20*T20) -> 
B21: =IF(B20>='User input'!F$24,"",B20+1) ->  | C21: =IF(B21>'User input'!F$24,"",'User input'!F$50^B21) ->  | D21: =IF(B21>'User input'!F$24,"",IF(B21=0,'User input'!F$14,D20+1)) ->  | E21: =IF(B21>'User input'!F$24,"",IF(B21=0,'User input'!F$19,E20+'User input'!F$43)) ->  | F21: =IF(B21>'User input'!F$24,"",EXP('User input'!G$9*(D21-'User input'!F$14)+'User input'!H$9*((E21-'User input'!F$19)/100))*'User input'!F$21*(1+'User input'!F$45)^B21) ->  | G21: =IF(B21>'User input'!F$24,"",IF(B21>0,F20*'User input'!L$23,0)) ->  | H21: =IF(B21>'User input'!F$24,"",IF(B21>0,F20-F21,0)) ->  | I21: =IF(B21>'User input'!F$24,"",IF(B21>7,0,IF(SUM(I$11:I20)<1,IF(B21='User input'!F$24,'User input'!L42/2,'User input'!L42),0))) ->  | J21: =IF(B21>'User input'!F$24,"",IF(B21=0,MIN('User input'!F$20,'User input'!L$28)+'User input'!L$31+'User input'!L$32*I21,'User input'!L$32*I21)) ->  | K21: =IF(B21>'User input'!F$24,"",IF(B21=0,'User input'!F$20-J21,K20-J21)) ->  | L21: =IF(B21>'User input'!F$24,"",IF(B21>0,('User input'!F$20-'User input'!F$22)*'User input'!L$23,0)) ->  | M21: =IF(B21>'User input'!F$24,"",IF(B21='User input'!F$24,'User input'!F$20-'User input'!F$22,0)) ->  | N21: =IF(B21>'User input'!F$24,"",IF(B21=0,'User input'!F$22,IF(B21='User input'!F$24,-F21*(1-'User input'!F$46),0))) ->  | O21: =IF(B21>'User input'!F$24,"",IF(B21>0,'User input'!F$48*F20,0)) ->  | P21: =IF(B21>'User input'!F$24,"",(IF(E21>'User input'!K$9,(E21-'User input'!K$9)*('User input'!F$23*(1+'User input'!F$45)^B21*'User input'!J$9*'User input'!I$9*('User input'!K$9/1000)^('User input'!J$9-1))/1000+'User input'!I$9*'User input'!F$23*(1+'User input'!F$45)^B21*('User input'!K$9/1000)^'User input'!J$9,'User input'!I$9*'User input'!F$23*(1+'User input'!F$45)^B21*(E21/1000)^'User input'!J$9))*'User input'!F$47) ->  | Q21: =IF(B21>'User input'!F$24,"",IF(B21>0,(P21-P20),0)) ->  | R21: =IF(B21>'User input'!F$24,"",Q21/'User input'!F$43) ->  | S21: =IF(B21>'User input'!F$24,"",(J21+L21+O21+Q21)*('User input'!L$25+'User input'!L$26)-IF(B21='User input'!F$24,(F21-K21)*'User input'!L$25,0)) ->  | T21: =IF(B21>'User input'!F$24,"",L21+M21+N21+O21+Q21-S21) ->  | U21: =IF(B21>'User input'!F$24,"",C21*T21) -> 
B22: =IF(B21>='User input'!F$24,"",B21+1) ->  | C22: =IF(B22>'User input'!F$24,"",'User input'!F$50^B22) ->  | D22: =IF(B22>'User input'!F$24,"",IF(B22=0,'User input'!F$14,D21+1)) ->  | E22: =IF(B22>'User input'!F$24,"",IF(B22=0,'User input'!F$19,E21+'User input'!F$43)) ->  | F22: =IF(B22>'User input'!F$24,"",EXP('User input'!G$9*(D22-'User input'!F$14)+'User input'!H$9*((E22-'User input'!F$19)/100))*'User input'!F$21*(1+'User input'!F$45)^B22) ->  | G22: =IF(B22>'User input'!F$24,"",IF(B22>0,F21*'User input'!L$23,0)) ->  | H22: =IF(B22>'User input'!F$24,"",IF(B22>0,F21-F22,0)) ->  | I22: =IF(B22>'User input'!F$24,"",IF(B22>7,0,IF(SUM(I$11:I21)<1,IF(B22='User input'!F$24,'User input'!L43/2,'User input'!L43),0))) ->  | J22: =IF(B22>'User input'!F$24,"",IF(B22=0,MIN('User input'!F$20,'User input'!L$28)+'User input'!L$31+'User input'!L$32*I22,'User input'!L$32*I22)) ->  | K22: =IF(B22>'User input'!F$24,"",IF(B22=0,'User input'!F$20-J22,K21-J22)) ->  | L22: =IF(B22>'User input'!F$24,"",IF(B22>0,('User input'!F$20-'User input'!F$22)*'User input'!L$23,0)) ->  | M22: =IF(B22>'User input'!F$24,"",IF(B22='User input'!F$24,'User input'!F$20-'User input'!F$22,0)) ->  | N22: =IF(B22>'User input'!F$24,"",IF(B22=0,'User input'!F$22,IF(B22='User input'!F$24,-F22*(1-'User input'!F$46),0))) ->  | O22: =IF(B22>'User input'!F$24,"",IF(B22>0,'User input'!F$48*F21,0)) ->  | P22: =IF(B22>'User input'!F$24,"",(IF(E22>'User input'!K$9,(E22-'User input'!K$9)*('User input'!F$23*(1+'User input'!F$45)^B22*'User input'!J$9*'User input'!I$9*('User input'!K$9/1000)^('User input'!J$9-1))/1000+'User input'!I$9*'User input'!F$23*(1+'User input'!F$45)^B22*('User input'!K$9/1000)^'User input'!J$9,'User input'!I$9*'User input'!F$23*(1+'User input'!F$45)^B22*(E22/1000)^'User input'!J$9))*'User input'!F$47) ->  | Q22: =IF(B22>'User input'!F$24,"",IF(B22>0,(P22-P21),0)) ->  | R22: =IF(B22>'User input'!F$24,"",Q22/'User input'!F$43) ->  | S22: =IF(B22>'User input'!F$24,"",(J22+L22+O22+Q22)*('User input'!L$25+'User input'!L$26)-IF(B22='User input'!F$24,(F22-K22)*'User input'!L$25,0)) ->  | T22: =IF(B22>'User input'!F$24,"",L22+M22+N22+O22+Q22-S22) ->  | U22: =IF(B22>'User input'!F$24,"",C22*T22) -> 
B23: =IF(B22>='User input'!F$24,"",B22+1) ->  | C23: =IF(B23>'User input'!F$24,"",'User input'!F$50^B23) ->  | D23: =IF(B23>'User input'!F$24,"",IF(B23=0,'User input'!F$14,D22+1)) ->  | E23: =IF(B23>'User input'!F$24,"",IF(B23=0,'User input'!F$19,E22+'User input'!F$43)) ->  | F23: =IF(B23>'User input'!F$24,"",EXP('User input'!G$9*(D23-'User input'!F$14)+'User input'!H$9*((E23-'User input'!F$19)/100))*'User input'!F$21*(1+'User input'!F$45)^B23) ->  | G23: =IF(B23>'User input'!F$24,"",IF(B23>0,F22*'User input'!L$23,0)) ->  | H23: =IF(B23>'User input'!F$24,"",IF(B23>0,F22-F23,0)) ->  | I23: =IF(B23>'User input'!F$24,"",IF(B23>7,0,IF(SUM(I$11:I22)<1,IF(B23='User input'!F$24,'User input'!L44/2,'User input'!L44),0))) ->  | J23: =IF(B23>'User input'!F$24,"",IF(B23=0,MIN('User input'!F$20,'User input'!L$28)+'User input'!L$31+'User input'!L$32*I23,'User input'!L$32*I23)) ->  | K23: =IF(B23>'User input'!F$24,"",IF(B23=0,'User input'!F$20-J23,K22-J23)) ->  | L23: =IF(B23>'User input'!F$24,"",IF(B23>0,('User input'!F$20-'User input'!F$22)*'User input'!L$23,0)) ->  | M23: =IF(B23>'User input'!F$24,"",IF(B23='User input'!F$24,'User input'!F$20-'User input'!F$22,0)) ->  | N23: =IF(B23>'User input'!F$24,"",IF(B23=0,'User input'!F$22,IF(B23='User input'!F$24,-F23*(1-'User input'!F$46),0))) ->  | O23: =IF(B23>'User input'!F$24,"",IF(B23>0,'User input'!F$48*F22,0)) ->  | P23: =IF(B23>'User input'!F$24,"",(IF(E23>'User input'!K$9,(E23-'User input'!K$9)*('User input'!F$23*(1+'User input'!F$45)^B23*'User input'!J$9*'User input'!I$9*('User input'!K$9/1000)^('User input'!J$9-1))/1000+'User input'!I$9*'User input'!F$23*(1+'User input'!F$45)^B23*('User input'!K$9/1000)^'User input'!J$9,'User input'!I$9*'User input'!F$23*(1+'User input'!F$45)^B23*(E23/1000)^'User input'!J$9))*'User input'!F$47) ->  | Q23: =IF(B23>'User input'!F$24,"",IF(B23>0,(P23-P22),0)) ->  | R23: =IF(B23>'User input'!F$24,"",Q23/'User input'!F$43) ->  | S23: =IF(B23>'User input'!F$24,"",(J23+L23+O23+Q23)*('User input'!L$25+'User input'!L$26)-IF(B23='User input'!F$24,(F23-K23)*'User input'!L$25,0)) ->  | T23: =IF(B23>'User input'!F$24,"",L23+M23+N23+O23+Q23-S23) ->  | U23: =IF(B23>'User input'!F$24,"",C23*T23) -> 
B24: =IF(B23>='User input'!F$24,"",B23+1) ->  | C24: =IF(B24>'User input'!F$24,"",'User input'!F$50^B24) ->  | D24: =IF(B24>'User input'!F$24,"",IF(B24=0,'User input'!F$14,D23+1)) ->  | E24: =IF(B24>'User input'!F$24,"",IF(B24=0,'User input'!F$19,E23+'User input'!F$43)) ->  | F24: =IF(B24>'User input'!F$24,"",EXP('User input'!G$9*(D24-'User input'!F$14)+'User input'!H$9*((E24-'User input'!F$19)/100))*'User input'!F$21*(1+'User input'!F$45)^B24) ->  | G24: =IF(B24>'User input'!F$24,"",IF(B24>0,F23*'User input'!L$23,0)) ->  | H24: =IF(B24>'User input'!F$24,"",IF(B24>0,F23-F24,0)) ->  | I24: =IF(B24>'User input'!F$24,"",IF(B24>7,0,IF(SUM(I$11:I23)<1,IF(B24='User input'!F$24,'User input'!L45/2,'User input'!L45),0))) ->  | J24: =IF(B24>'User input'!F$24,"",IF(B24=0,MIN('User input'!F$20,'User input'!L$28)+'User input'!L$31+'User input'!L$32*I24,'User input'!L$32*I24)) ->  | K24: =IF(B24>'User input'!F$24,"",IF(B24=0,'User input'!F$20-J24,K23-J24)) ->  | L24: =IF(B24>'User input'!F$24,"",IF(B24>0,('User input'!F$20-'User input'!F$22)*'User input'!L$23,0)) ->  | M24: =IF(B24>'User input'!F$24,"",IF(B24='User input'!F$24,'User input'!F$20-'User input'!F$22,0)) ->  | N24: =IF(B24>'User input'!F$24,"",IF(B24=0,'User input'!F$22,IF(B24='User input'!F$24,-F24*(1-'User input'!F$46),0))) ->  | O24: =IF(B24>'User input'!F$24,"",IF(B24>0,'User input'!F$48*F23,0)) ->  | P24: =IF(B24>'User input'!F$24,"",(IF(E24>'User input'!K$9,(E24-'User input'!K$9)*('User input'!F$23*(1+'User input'!F$45)^B24*'User input'!J$9*'User input'!I$9*('User input'!K$9/1000)^('User input'!J$9-1))/1000+'User input'!I$9*'User input'!F$23*(1+'User input'!F$45)^B24*('User input'!K$9/1000)^'User input'!J$9,'User input'!I$9*'User input'!F$23*(1+'User input'!F$45)^B24*(E24/1000)^'User input'!J$9))*'User input'!F$47) ->  | Q24: =IF(B24>'User input'!F$24,"",IF(B24>0,(P24-P23),0)) ->  | R24: =IF(B24>'User input'!F$24,"",Q24/'User input'!F$43) ->  | S24: =IF(B24>'User input'!F$24,"",(J24+L24+O24+Q24)*('User input'!L$25+'User input'!L$26)-IF(B24='User input'!F$24,(F24-K24)*'User input'!L$25,0)) ->  | T24: =IF(B24>'User input'!F$24,"",L24+M24+N24+O24+Q24-S24) ->  | U24: =IF(B24>'User input'!F$24,"",C24*T24) -> 
B25: =IF(B24>='User input'!F$24,"",B24+1) ->  | C25: =IF(B25>'User input'!F$24,"",'User input'!F$50^B25) ->  | D25: =IF(B25>'User input'!F$24,"",IF(B25=0,'User input'!F$14,D24+1)) ->  | E25: =IF(B25>'User input'!F$24,"",IF(B25=0,'User input'!F$19,E24+'User input'!F$43)) ->  | F25: =IF(B25>'User input'!F$24,"",EXP('User input'!G$9*(D25-'User input'!F$14)+'User input'!H$9*((E25-'User input'!F$19)/100))*'User input'!F$21*(1+'User input'!F$45)^B25) ->  | G25: =IF(B25>'User input'!F$24,"",IF(B25>0,F24*'User input'!L$23,0)) ->  | H25: =IF(B25>'User input'!F$24,"",IF(B25>0,F24-F25,0)) ->  | I25: =IF(B25>'User input'!F$24,"",IF(B25>7,0,IF(SUM(I$11:I24)<1,IF(B25='User input'!F$24,'User input'!L46/2,'User input'!L46),0))) ->  | J25: =IF(B25>'User input'!F$24,"",IF(B25=0,MIN('User input'!F$20,'User input'!L$28)+'User input'!L$31+'User input'!L$32*I25,'User input'!L$32*I25)) ->  | K25: =IF(B25>'User input'!F$24,"",IF(B25=0,'User input'!F$20-J25,K24-J25)) ->  | L25: =IF(B25>'User input'!F$24,"",IF(B25>0,('User input'!F$20-'User input'!F$22)*'User input'!L$23,0)) ->  | M25: =IF(B25>'User input'!F$24,"",IF(B25='User input'!F$24,'User input'!F$20-'User input'!F$22,0)) ->  | N25: =IF(B25>'User input'!F$24,"",IF(B25=0,'User input'!F$22,IF(B25='User input'!F$24,-F25*(1-'User input'!F$46),0))) ->  | O25: =IF(B25>'User input'!F$24,"",IF(B25>0,'User input'!F$48*F24,0)) ->  | P25: =IF(B25>'User input'!F$24,"",(IF(E25>'User input'!K$9,(E25-'User input'!K$9)*('User input'!F$23*(1+'User input'!F$45)^B25*'User input'!J$9*'User input'!I$9*('User input'!K$9/1000)^('User input'!J$9-1))/1000+'User input'!I$9*'User input'!F$23*(1+'User input'!F$45)^B25*('User input'!K$9/1000)^'User input'!J$9,'User input'!I$9*'User input'!F$23*(1+'User input'!F$45)^B25*(E25/1000)^'User input'!J$9))*'User input'!F$47) ->  | Q25: =IF(B25>'User input'!F$24,"",IF(B25>0,(P25-P24),0)) ->  | R25: =IF(B25>'User input'!F$24,"",Q25/'User input'!F$43) ->  | S25: =IF(B25>'User input'!F$24,"",(J25+L25+O25+Q25)*('User input'!L$25+'User input'!L$26)-IF(B25='User input'!F$24,(F25-K25)*'User input'!L$25,0)) ->  | T25: =IF(B25>'User input'!F$24,"",L25+M25+N25+O25+Q25-S25) ->  | U25: =IF(B25>'User input'!F$24,"",C25*T25) -> 
B26: =IF(B25>='User input'!F$24,"",B25+1) ->  | C26: =IF(B26>'User input'!F$24,"",'User input'!F$50^B26) ->  | D26: =IF(B26>'User input'!F$24,"",IF(B26=0,'User input'!F$14,D25+1)) ->  | E26: =IF(B26>'User input'!F$24,"",IF(B26=0,'User input'!F$19,E25+'User input'!F$43)) ->  | F26: =IF(B26>'User input'!F$24,"",EXP('User input'!G$9*(D26-'User input'!F$14)+'User input'!H$9*((E26-'User input'!F$19)/100))*'User input'!F$21*(1+'User input'!F$45)^B26) ->  | G26: =IF(B26>'User input'!F$24,"",IF(B26>0,F25*'User input'!L$23,0)) ->  | H26: =IF(B26>'User input'!F$24,"",IF(B26>0,F25-F26,0)) ->  | I26: =IF(B26>'User input'!F$24,"",IF(B26>7,0,IF(SUM(I$11:I25)<1,IF(B26='User input'!F$24,'User input'!L47/2,'User input'!L47),0))) ->  | J26: =IF(B26>'User input'!F$24,"",IF(B26=0,MIN('User input'!F$20,'User input'!L$28)+'User input'!L$31+'User input'!L$32*I26,'User input'!L$32*I26)) ->  | K26: =IF(B26>'User input'!F$24,"",IF(B26=0,'User input'!F$20-J26,K25-J26)) ->  | L26: =IF(B26>'User input'!F$24,"",IF(B26>0,('User input'!F$20-'User input'!F$22)*'User input'!L$23,0)) ->  | M26: =IF(B26>'User input'!F$24,"",IF(B26='User input'!F$24,'User input'!F$20-'User input'!F$22,0)) ->  | N26: =IF(B26>'User input'!F$24,"",IF(B26=0,'User input'!F$22,IF(B26='User input'!F$24,-F26*(1-'User input'!F$46),0))) ->  | O26: =IF(B26>'User input'!F$24,"",IF(B26>0,'User input'!F$48*F25,0)) ->  | P26: =IF(B26>'User input'!F$24,"",(IF(E26>'User input'!K$9,(E26-'User input'!K$9)*('User input'!F$23*(1+'User input'!F$45)^B26*'User input'!J$9*'User input'!I$9*('User input'!K$9/1000)^('User input'!J$9-1))/1000+'User input'!I$9*'User input'!F$23*(1+'User input'!F$45)^B26*('User input'!K$9/1000)^'User input'!J$9,'User input'!I$9*'User input'!F$23*(1+'User input'!F$45)^B26*(E26/1000)^'User input'!J$9))*'User input'!F$47) ->  | Q26: =IF(B26>'User input'!F$24,"",IF(B26>0,(P26-P25),0)) ->  | R26: =IF(B26>'User input'!F$24,"",Q26/'User input'!F$43) ->  | S26: =IF(B26>'User input'!F$24,"",(J26+L26+O26+Q26)*('User input'!L$25+'User input'!L$26)-IF(B26='User input'!F$24,(F26-K26)*'User input'!L$25,0)) ->  | T26: =IF(B26>'User input'!F$24,"",L26+M26+N26+O26+Q26-S26) ->  | U26: =IF(B26>'User input'!F$24,"",C26*T26) -> 
B27: =IF(B26>='User input'!F$24,"",B26+1) ->  | C27: =IF(B27>'User input'!F$24,"",'User input'!F$50^B27) ->  | D27: =IF(B27>'User input'!F$24,"",IF(B27=0,'User input'!F$14,D26+1)) ->  | E27: =IF(B27>'User input'!F$24,"",IF(B27=0,'User input'!F$19,E26+'User input'!F$43)) ->  | F27: =IF(B27>'User input'!F$24,"",EXP('User input'!G$9*(D27-'User input'!F$14)+'User input'!H$9*((E27-'User input'!F$19)/100))*'User input'!F$21*(1+'User input'!F$45)^B27) ->  | G27: =IF(B27>'User input'!F$24,"",IF(B27>0,F26*'User input'!L$23,0)) ->  | H27: =IF(B27>'User input'!F$24,"",IF(B27>0,F26-F27,0)) ->  | I27: =IF(B27>'User input'!F$24,"",IF(B27>7,0,IF(SUM(I$11:I26)<1,IF(B27='User input'!F$24,'User input'!L48/2,'User input'!L48),0))) ->  | J27: =IF(B27>'User input'!F$24,"",IF(B27=0,MIN('User input'!F$20,'User input'!L$28)+'User input'!L$31+'User input'!L$32*I27,'User input'!L$32*I27)) ->  | K27: =IF(B27>'User input'!F$24,"",IF(B27=0,'User input'!F$20-J27,K26-J27)) ->  | L27: =IF(B27>'User input'!F$24,"",IF(B27>0,('User input'!F$20-'User input'!F$22)*'User input'!L$23,0)) ->  | M27: =IF(B27>'User input'!F$24,"",IF(B27='User input'!F$24,'User input'!F$20-'User input'!F$22,0)) ->  | N27: =IF(B27>'User input'!F$24,"",IF(B27=0,'User input'!F$22,IF(B27='User input'!F$24,-F27*(1-'User input'!F$46),0))) ->  | O27: =IF(B27>'User input'!F$24,"",IF(B27>0,'User input'!F$48*F26,0)) ->  | P27: =IF(B27>'User input'!F$24,"",(IF(E27>'User input'!K$9,(E27-'User input'!K$9)*('User input'!F$23*(1+'User input'!F$45)^B27*'User input'!J$9*'User input'!I$9*('User input'!K$9/1000)^('User input'!J$9-1))/1000+'User input'!I$9*'User input'!F$23*(1+'User input'!F$45)^B27*('User input'!K$9/1000)^'User input'!J$9,'User input'!I$9*'User input'!F$23*(1+'User input'!F$45)^B27*(E27/1000)^'User input'!J$9))*'User input'!F$47) ->  | Q27: =IF(B27>'User input'!F$24,"",IF(B27>0,(P27-P26),0)) ->  | R27: =IF(B27>'User input'!F$24,"",Q27/'User input'!F$43) ->  | S27: =IF(B27>'User input'!F$24,"",(J27+L27+O27+Q27)*('User input'!L$25+'User input'!L$26)-IF(B27='User input'!F$24,(F27-K27)*'User input'!L$25,0)) ->  | T27: =IF(B27>'User input'!F$24,"",L27+M27+N27+O27+Q27-S27) ->  | U27: =IF(B27>'User input'!F$24,"",C27*T27) -> 
B28: =IF(B27>='User input'!F$24,"",B27+1) ->  | C28: =IF(B28>'User input'!F$24,"",'User input'!F$50^B28) ->  | D28: =IF(B28>'User input'!F$24,"",IF(B28=0,'User input'!F$14,D27+1)) ->  | E28: =IF(B28>'User input'!F$24,"",IF(B28=0,'User input'!F$19,E27+'User input'!F$43)) ->  | F28: =IF(B28>'User input'!F$24,"",EXP('User input'!G$9*(D28-'User input'!F$14)+'User input'!H$9*((E28-'User input'!F$19)/100))*'User input'!F$21*(1+'User input'!F$45)^B28) ->  | G28: =IF(B28>'User input'!F$24,"",IF(B28>0,F27*'User input'!L$23,0)) ->  | H28: =IF(B28>'User input'!F$24,"",IF(B28>0,F27-F28,0)) ->  | I28: =IF(B28>'User input'!F$24,"",IF(B28>7,0,IF(SUM(I$11:I27)<1,IF(B28='User input'!F$24,'User input'!L49/2,'User input'!L49),0))) ->  | J28: =IF(B28>'User input'!F$24,"",IF(B28=0,MIN('User input'!F$20,'User input'!L$28)+'User input'!L$31+'User input'!L$32*I28,'User input'!L$32*I28)) ->  | K28: =IF(B28>'User input'!F$24,"",IF(B28=0,'User input'!F$20-J28,K27-J28)) ->  | L28: =IF(B28>'User input'!F$24,"",IF(B28>0,('User input'!F$20-'User input'!F$22)*'User input'!L$23,0)) ->  | M28: =IF(B28>'User input'!F$24,"",IF(B28='User input'!F$24,'User input'!F$20-'User input'!F$22,0)) ->  | N28: =IF(B28>'User input'!F$24,"",IF(B28=0,'User input'!F$22,IF(B28='User input'!F$24,-F28*(1-'User input'!F$46),0))) ->  | O28: =IF(B28>'User input'!F$24,"",IF(B28>0,'User input'!F$48*F27,0)) ->  | P28: =IF(B28>'User input'!F$24,"",(IF(E28>'User input'!K$9,(E28-'User input'!K$9)*('User input'!F$23*(1+'User input'!F$45)^B28*'User input'!J$9*'User input'!I$9*('User input'!K$9/1000)^('User input'!J$9-1))/1000+'User input'!I$9*'User input'!F$23*(1+'User input'!F$45)^B28*('User input'!K$9/1000)^'User input'!J$9,'User input'!I$9*'User input'!F$23*(1+'User input'!F$45)^B28*(E28/1000)^'User input'!J$9))*'User input'!F$47) ->  | Q28: =IF(B28>'User input'!F$24,"",IF(B28>0,(P28-P27),0)) ->  | R28: =IF(B28>'User input'!F$24,"",Q28/'User input'!F$43) ->  | S28: =IF(B28>'User input'!F$24,"",(J28+L28+O28+Q28)*('User input'!L$25+'User input'!L$26)-IF(B28='User input'!F$24,(F28-K28)*'User input'!L$25,0)) ->  | T28: =IF(B28>'User input'!F$24,"",L28+M28+N28+O28+Q28-S28) ->  | U28: =IF(B28>'User input'!F$24,"",C28*T28) -> 
B29: =IF(B28>='User input'!F$24,"",B28+1) ->  | C29: =IF(B29>'User input'!F$24,"",'User input'!F$50^B29) ->  | D29: =IF(B29>'User input'!F$24,"",IF(B29=0,'User input'!F$14,D28+1)) ->  | E29: =IF(B29>'User input'!F$24,"",IF(B29=0,'User input'!F$19,E28+'User input'!F$43)) ->  | F29: =IF(B29>'User input'!F$24,"",EXP('User input'!G$9*(D29-'User input'!F$14)+'User input'!H$9*((E29-'User input'!F$19)/100))*'User input'!F$21*(1+'User input'!F$45)^B29) ->  | G29: =IF(B29>'User input'!F$24,"",IF(B29>0,F28*'User input'!L$23,0)) ->  | H29: =IF(B29>'User input'!F$24,"",IF(B29>0,F28-F29,0)) ->  | I29: =IF(B29>'User input'!F$24,"",IF(B29>7,0,IF(SUM(I$11:I28)<1,IF(B29='User input'!F$24,'User input'!L50/2,'User input'!L50),0))) ->  | J29: =IF(B29>'User input'!F$24,"",IF(B29=0,MIN('User input'!F$20,'User input'!L$28)+'User input'!L$31+'User input'!L$32*I29,'User input'!L$32*I29)) ->  | K29: =IF(B29>'User input'!F$24,"",IF(B29=0,'User input'!F$20-J29,K28-J29)) ->  | L29: =IF(B29>'User input'!F$24,"",IF(B29>0,('User input'!F$20-'User input'!F$22)*'User input'!L$23,0)) ->  | M29: =IF(B29>'User input'!F$24,"",IF(B29='User input'!F$24,'User input'!F$20-'User input'!F$22,0)) ->  | N29: =IF(B29>'User input'!F$24,"",IF(B29=0,'User input'!F$22,IF(B29='User input'!F$24,-F29*(1-'User input'!F$46),0))) ->  | O29: =IF(B29>'User input'!F$24,"",IF(B29>0,'User input'!F$48*F28,0)) ->  | P29: =IF(B29>'User input'!F$24,"",(IF(E29>'User input'!K$9,(E29-'User input'!K$9)*('User input'!F$23*(1+'User input'!F$45)^B29*'User input'!J$9*'User input'!I$9*('User input'!K$9/1000)^('User input'!J$9-1))/1000+'User input'!I$9*'User input'!F$23*(1+'User input'!F$45)^B29*('User input'!K$9/1000)^'User input'!J$9,'User input'!I$9*'User input'!F$23*(1+'User input'!F$45)^B29*(E29/1000)^'User input'!J$9))*'User input'!F$47) ->  | Q29: =IF(B29>'User input'!F$24,"",IF(B29>0,(P29-P28),0)) ->  | R29: =IF(B29>'User input'!F$24,"",Q29/'User input'!F$43) ->  | S29: =IF(B29>'User input'!F$24,"",(J29+L29+O29+Q29)*('User input'!L$25+'User input'!L$26)-IF(B29='User input'!F$24,(F29-K29)*'User input'!L$25,0)) ->  | T29: =IF(B29>'User input'!F$24,"",L29+M29+N29+O29+Q29-S29) ->  | U29: =IF(B29>'User input'!F$24,"",C29*T29) -> 
B30: =IF(B29>='User input'!F$24,"",B29+1) ->  | C30: =IF(B30>'User input'!F$24,"",'User input'!F$50^B30) ->  | D30: =IF(B30>'User input'!F$24,"",IF(B30=0,'User input'!F$14,D29+1)) ->  | E30: =IF(B30>'User input'!F$24,"",IF(B30=0,'User input'!F$19,E29+'User input'!F$43)) ->  | F30: =IF(B30>'User input'!F$24,"",EXP('User input'!G$9*(D30-'User input'!F$14)+'User input'!H$9*((E30-'User input'!F$19)/100))*'User input'!F$21*(1+'User input'!F$45)^B30) ->  | G30: =IF(B30>'User input'!F$24,"",IF(B30>0,F29*'User input'!L$23,0)) ->  | H30: =IF(B30>'User input'!F$24,"",IF(B30>0,F29-F30,0)) ->  | I30: =IF(B30>'User input'!F$24,"",IF(B30>7,0,IF(SUM(I$11:I29)<1,IF(B30='User input'!F$24,'User input'!L51/2,'User input'!L51),0))) ->  | J30: =IF(B30>'User input'!F$24,"",IF(B30=0,MIN('User input'!F$20,'User input'!L$28)+'User input'!L$31+'User input'!L$32*I30,'User input'!L$32*I30)) ->  | K30: =IF(B30>'User input'!F$24,"",IF(B30=0,'User input'!F$20-J30,K29-J30)) ->  | L30: =IF(B30>'User input'!F$24,"",IF(B30>0,('User input'!F$20-'User input'!F$22)*'User input'!L$23,0)) ->  | M30: =IF(B30>'User input'!F$24,"",IF(B30='User input'!F$24,'User input'!F$20-'User input'!F$22,0)) ->  | N30: =IF(B30>'User input'!F$24,"",IF(B30=0,'User input'!F$22,IF(B30='User input'!F$24,-F30*(1-'User input'!F$46),0))) ->  | O30: =IF(B30>'User input'!F$24,"",IF(B30>0,'User input'!F$48*F29,0)) ->  | P30: =IF(B30>'User input'!F$24,"",(IF(E30>'User input'!K$9,(E30-'User input'!K$9)*('User input'!F$23*(1+'User input'!F$45)^B30*'User input'!J$9*'User input'!I$9*('User input'!K$9/1000)^('User input'!J$9-1))/1000+'User input'!I$9*'User input'!F$23*(1+'User input'!F$45)^B30*('User input'!K$9/1000)^'User input'!J$9,'User input'!I$9*'User input'!F$23*(1+'User input'!F$45)^B30*(E30/1000)^'User input'!J$9))*'User input'!F$47) ->  | Q30: =IF(B30>'User input'!F$24,"",IF(B30>0,(P30-P29),0)) ->  | R30: =IF(B30>'User input'!F$24,"",Q30/'User input'!F$43) ->  | S30: =IF(B30>'User input'!F$24,"",(J30+L30+O30+Q30)*('User input'!L$25+'User input'!L$26)-IF(B30='User input'!F$24,(F30-K30)*'User input'!L$25,0)) ->  | T30: =IF(B30>'User input'!F$24,"",L30+M30+N30+O30+Q30-S30) ->  | U30: =IF(B30>'User input'!F$24,"",C30*T30) -> 
B31: =IF(B30>='User input'!F$24,"",B30+1) ->  | C31: =IF(B31>'User input'!F$24,"",'User input'!F$50^B31) ->  | D31: =IF(B31>'User input'!F$24,"",IF(B31=0,'User input'!F$14,D30+1)) ->  | E31: =IF(B31>'User input'!F$24,"",IF(B31=0,'User input'!F$19,E30+'User input'!F$43)) ->  | F31: =IF(B31>'User input'!F$24,"",EXP('User input'!G$9*(D31-'User input'!F$14)+'User input'!H$9*((E31-'User input'!F$19)/100))*'User input'!F$21*(1+'User input'!F$45)^B31) ->  | G31: =IF(B31>'User input'!F$24,"",IF(B31>0,F30*'User input'!L$23,0)) ->  | H31: =IF(B31>'User input'!F$24,"",IF(B31>0,F30-F31,0)) ->  | I31: =IF(B31>'User input'!F$24,"",IF(B31>7,0,IF(SUM(I$11:I30)<1,IF(B31='User input'!F$24,'User input'!L52/2,'User input'!L52),0))) ->  | J31: =IF(B31>'User input'!F$24,"",IF(B31=0,MIN('User input'!F$20,'User input'!L$28)+'User input'!L$31+'User input'!L$32*I31,'User input'!L$32*I31)) ->  | K31: =IF(B31>'User input'!F$24,"",IF(B31=0,'User input'!F$20-J31,K30-J31)) ->  | L31: =IF(B31>'User input'!F$24,"",IF(B31>0,('User input'!F$20-'User input'!F$22)*'User input'!L$23,0)) ->  | M31: =IF(B31>'User input'!F$24,"",IF(B31='User input'!F$24,'User input'!F$20-'User input'!F$22,0)) ->  | N31: =IF(B31>'User input'!F$24,"",IF(B31=0,'User input'!F$22,IF(B31='User input'!F$24,-F31*(1-'User input'!F$46),0))) ->  | O31: =IF(B31>'User input'!F$24,"",IF(B31>0,'User input'!F$48*F30,0)) ->  | P31: =IF(B31>'User input'!F$24,"",(IF(E31>'User input'!K$9,(E31-'User input'!K$9)*('User input'!F$23*(1+'User input'!F$45)^B31*'User input'!J$9*'User input'!I$9*('User input'!K$9/1000)^('User input'!J$9-1))/1000+'User input'!I$9*'User input'!F$23*(1+'User input'!F$45)^B31*('User input'!K$9/1000)^'User input'!J$9,'User input'!I$9*'User input'!F$23*(1+'User input'!F$45)^B31*(E31/1000)^'User input'!J$9))*'User input'!F$47) ->  | Q31: =IF(B31>'User input'!F$24,"",IF(B31>0,(P31-P30),0)) ->  | R31: =IF(B31>'User input'!F$24,"",Q31/'User input'!F$43) ->  | S31: =IF(B31>'User input'!F$24,"",(J31+L31+O31+Q31)*('User input'!L$25+'User input'!L$26)-IF(B31='User input'!F$24,(F31-K31)*'User input'!L$25,0)) ->  | T31: =IF(B31>'User input'!F$24,"",L31+M31+N31+O31+Q31-S31) ->  | U31: =IF(B31>'User input'!F$24,"",C31*T31) -> 
B32: =IF(B31>='User input'!F$24,"",B31+1) ->  | C32: =IF(B32>'User input'!F$24,"",'User input'!F$50^B32) ->  | D32: =IF(B32>'User input'!F$24,"",IF(B32=0,'User input'!F$14,D31+1)) ->  | E32: =IF(B32>'User input'!F$24,"",IF(B32=0,'User input'!F$19,E31+'User input'!F$43)) ->  | F32: =IF(B32>'User input'!F$24,"",EXP('User input'!G$9*(D32-'User input'!F$14)+'User input'!H$9*((E32-'User input'!F$19)/100))*'User input'!F$21*(1+'User input'!F$45)^B32) ->  | G32: =IF(B32>'User input'!F$24,"",IF(B32>0,F31*'User input'!L$23,0)) ->  | H32: =IF(B32>'User input'!F$24,"",IF(B32>0,F31-F32,0)) ->  | I32: =IF(B32>'User input'!F$24,"",IF(B32>7,0,IF(SUM(I$11:I31)<1,IF(B32='User input'!F$24,'User input'!L53/2,'User input'!L53),0))) ->  | J32: =IF(B32>'User input'!F$24,"",IF(B32=0,MIN('User input'!F$20,'User input'!L$28)+'User input'!L$31+'User input'!L$32*I32,'User input'!L$32*I32)) ->  | K32: =IF(B32>'User input'!F$24,"",IF(B32=0,'User input'!F$20-J32,K31-J32)) ->  | L32: =IF(B32>'User input'!F$24,"",IF(B32>0,('User input'!F$20-'User input'!F$22)*'User input'!L$23,0)) ->  | M32: =IF(B32>'User input'!F$24,"",IF(B32='User input'!F$24,'User input'!F$20-'User input'!F$22,0)) ->  | N32: =IF(B32>'User input'!F$24,"",IF(B32=0,'User input'!F$22,IF(B32='User input'!F$24,-F32*(1-'User input'!F$46),0))) ->  | O32: =IF(B32>'User input'!F$24,"",IF(B32>0,'User input'!F$48*F31,0)) ->  | P32: =IF(B32>'User input'!F$24,"",(IF(E32>'User input'!K$9,(E32-'User input'!K$9)*('User input'!F$23*(1+'User input'!F$45)^B32*'User input'!J$9*'User input'!I$9*('User input'!K$9/1000)^('User input'!J$9-1))/1000+'User input'!I$9*'User input'!F$23*(1+'User input'!F$45)^B32*('User input'!K$9/1000)^'User input'!J$9,'User input'!I$9*'User input'!F$23*(1+'User input'!F$45)^B32*(E32/1000)^'User input'!J$9))*'User input'!F$47) ->  | Q32: =IF(B32>'User input'!F$24,"",IF(B32>0,(P32-P31),0)) ->  | R32: =IF(B32>'User input'!F$24,"",Q32/'User input'!F$43) ->  | S32: =IF(B32>'User input'!F$24,"",(J32+L32+O32+Q32)*('User input'!L$25+'User input'!L$26)-IF(B32='User input'!F$24,(F32-K32)*'User input'!L$25,0)) ->  | T32: =IF(B32>'User input'!F$24,"",L32+M32+N32+O32+Q32-S32) ->  | U32: =IF(B32>'User input'!F$24,"",C32*T32) -> 
B35: * EOY = End of year | I35: =IF(OR('User input'!L41>1.01,'User input'!L41<0.99),"Total depreciation rate should add to 100%"," ") -> 
B36: ** TIS = Property tax, insurance, and shelter | I36: =IF(OR('User input'!L41>1.01,'User input'!L41<0.99),"Go back to User Input tab and check entered values!"," ") -> 

Sheet Analysis summary
B2: Baler analysis summary section
B4: Analysis highlights:
B5: Baler class used | F5: =VLOOKUP('User input'!F12,'User input'!B7:I8,2) -> Large round baler | H5: =IF('User input'!F12=2,"","(using "&FIXED((1-'User input'!F13)*100,0)&"% twine and "&FIXED('User input'!F13*100,0)&"% net wrap)") -> (using 0% twine and 100% net wrap)
B7: Baler purchase price | F7: ='User input'!F20 -> 30000
B8: Baler age when purchased | F8: ='User input'!F14 -> 0
B9: Bales on baler when purchased | F9: ='User input'!F15 -> 0
B10: Estimated hours on baler when purchased | F10: ='User input'!F19 -> 0
B11: Average weight of bales in lb | F11: ='User input'!F32 -> 1700
B12: Bales made by baler per year | F12: ='User input'!F41 -> 5000
B13: Tons of hay baled per year | F13: =F11*F12/2000 -> 4250
B14: Hours put on baler per year | F14: ='User input'!F43 -> 168.8972752
B15: Hours put on tractor hourmeter per year | F15: ='User input'!L19 -> 295.5702316
B16: Total acres baled per year | F16: ='User input'!F42 -> 3541.666667
B17: Number of years baler will be used | F17: ='User input'!F24 -> 3
B18: Baler value when sold | F18: =-MIN('Time and Tax (TT)'!N12:N32) -> 24576.19796
B19: Accumulated repairs over lifetime | F19: =MAX('Time and Tax (TT)'!P12:P32) -> 5000.196617
B21: Cost breakdown:
F22: $/year | G22: $/bale | H22: $/ton | I22: $/hour | J22: $/acre
C23: Opportunity interest | F23: ='User input'!L46 -> 1243.82697 | G23: =F23/F$12 -> 0.2487653939 | H23: =F23/F$13 -> 0.2926651693 | I23: =F23/F$14 -> 7.364399265 | J23: =F23/F$16 -> 0.3511982032
C24: Market depreciation | F24: ='User input'!L47 -> 1198.454291 | G24: =F24/F$12 -> 0.2396908582 | H24: =F24/F$13 -> 0.281989245 | I24: =F24/F$14 -> 7.095758587 | J24: =F24/F$16 -> 0.338387094
C25: Repair and maintenance | F25: ='User input'!L48 -> 1431.47519 | G25: =F25/F$12 -> 0.2862950381 | H25: =F25/F$13 -> 0.3368176918 | I25: =F25/F$14 -> 8.475419087 | J25: =F25/F$16 -> 0.4041812302
C26: Tax, insurance, & shelter (TIS) | F26: ='User input'!L49 -> 373.1480909 | G26: =F26/F$12 -> 0.07462961818 | H26: =F26/F$13 -> 0.0877995508 | I26: =F26/F$14 -> 2.20931978 | J26: =F26/F$16 -> 0.105359461
B27: SUBTOTAL1 | F27: =SUM(F23:F26) -> 4246.904542 | G27: =SUM(G23:G26) -> 0.8493809084 | H27: =SUM(H23:H26) -> 0.9992716569 | I27: =SUM(I23:I26) -> 25.14489672 | J27: =SUM(J23:J26) -> 1.199125988
C29: Twine or net wrap | F29: ='User input'!F41*'User input'!F60 -> 7351.326809 | G29: =F29/F$12 -> 1.470265362 | H29: =F29/F$13 -> 1.729723955 | I29: =F29/F$14 -> 43.52543165 | J29: =F29/F$16 -> 2.075668746
C30: Tractor rental charge | F30: ='User input'!L19*'User input'!L14 -> 8867.106949 | G30: =F30/F$12 -> 1.77342139 | H30: =F30/F$13 -> 2.086378106 | I30: =F30/F$14 -> 52.5 | J30: =F30/F$16 -> 2.503653727
C31: Labor | F31: ='User input'!L19*'User input'!L20*'User input'!L21 -> 7684.826023 | G31: =F31/F$12 -> 1.536965205 | H31: =F31/F$13 -> 1.808194358 | I31: =F31/F$14 -> 45.5 | J31: =F31/F$16 -> 2.16983323
C32: Fuel and lubrication | F32: ='User input'!L19*'User input'!L15*'User input'!L16*(1+'User input'!L17) -> 5852.290587 | G32: =F32/F$12 -> 1.170458117 | H32: =F32/F$13 -> 1.37700955 | I32: =F32/F$14 -> 34.65 | J32: =F32/F$16 -> 1.65241146
B33: SUBTOTAL | F33: =SUM(F29:F32) -> 29755.55037 | G33: =SUM(G29:G32) -> 5.951110074 | H33: =SUM(H29:H32) -> 7.001305969 | I33: =SUM(I29:I32) -> 176.1754317 | J33: =SUM(J29:J32) -> 8.401567163
B35: Total for baling operation2 | F35: =F27+F33 -> 34002.45491 | G35: =G27+G33 -> 6.800490982 | H35: =H27+H33 -> 8.000577626 | I35: =I27+I33 -> 201.3203284 | J35: =J27+J33 -> 9.600693151
B37: 1 Can be compared to baler rental rates since tractor, labor, and fuel & lubrication are excluded.
B38: 2 Can be approximately compared to custom rates for baling if cost of related vehicles such as pickups is added.
B40: Date of analysis =====> | E40: =NOW() -> 2016-06-29T11:05:50.150

Sheet Baler Models
C2: Table 1. Selected baler models and associated measurements1
E4: Bale width | F4: Bale height
C5: Brand | D5: Model | E5: (inches) | F5: (inches)
B6: Square Balers
C7: AGCO Hesston | D7: 2170 | E7: 47 | F7: 34.4
C8: AGCO Hesston | D8: 2190 | E8: 47.25 | F8: 50
C9: AGCO Hesston | D9: 4700 | E9: 31 | F9: 32.5
C10: AGCO Hesston | D10: 4750 | E10: 31.5 | F10: 34.4
C11: AGCO Hesston | D11: 4755 | E11: 31.5 | F11: 34.4
C12: AGCO Hesston | D12: 4760 | E12: 31.5 | F12: 34.4
C13: AGCO Hesston | D13: 4790 | E13: 47.25 | F13: 34.4
C14: AGCO Hesston | D14: 4800 | E14: 46.5 | F14: 50
C15: AGCO Hesston | D15: 4900 | E15: 46.5 | F15: 50
C16: AGCO Hesston | D16: 4910 | E16: 46.5 | F16: 50
C17: AGCO Hesston | D17: 7434 | E17: 47 | F17: 34.4
C18: AGCO Hesston | D18: 7444 | E18: 46.5 | F18: 50
C19: New Holland | D19: 590 | E19: 31.5 | F19: 35.4
C20: New Holland | D20: 595 | E20: 47.3 | F20: 35.4
C21: New Holland | D21: BB9060 | E21: 35 | F21: 32
C22: New Holland | D22: BB9080 | E22: 47 | F22: 35
C23: New Holland | D23: BB940 | E23: 31.5 | F23: 35.4
C24: New Holland | D24: BB940A | E24: 31.5 | F24: 35.4
C25: New Holland | D25: BB960 | E25: 47.3 | F25: 35.4
C26: New Holland | D26: BB960A | E26: 47.3 | F26: 35.4
C27: New Holland | D27: D1000 | E27: 24 | F27: 36
C28: New Holland | D28: D2000 | E28: 47.3 | F28: 35.4
C29: New Holland | D29: D800 | E29: 24 | F29: 36
B31: Round Balers
C32: AGCO Hesston | D32: 514 | E32: 60 | F32: 72
C33: AGCO Hesston | D33: 530 | E33: 39.4 | F33: 52
C34: AGCO Hesston | D34: 540 | E34: 47 | F34: 51
C35: AGCO Hesston | D35: 545 | E35: 47 | F35: 60
C36: AGCO Hesston | D36: 550 | E36: 46.5 | F36: 75
C37: AGCO Hesston | D37: 560 | E37: 61.5 | F37: 72
C38: AGCO Hesston | D38: 730 | E38: 39.4 | F38: 52
C39: AGCO Hesston | D39: 740 | E39: 47 | F39: 51
C40: AGCO Hesston | D40: 745 | E40: 46.5 | F40: 60
C41: AGCO Hesston | D41: 814 | E41: 60 | F41: 72
C42: AGCO Hesston | D42: 830 | E42: 39.4 | F42: 52
C43: AGCO Hesston | D43: 840 | E43: 47 | F43: 51
C44: AGCO Hesston | D44: 845 | E44: 46.5 | F44: 60
C45: AGCO Hesston | D45: 855 | E45: 61.5 | F45: 60
C46: AGCO Hesston | D46: 945 | E46: 46.5 | F46: 60
C47: AGCO Hesston | D47: 946 | E47: 46.5 | F47: 72
C48: AGCO Hesston | D48: 955 | E48: 61.5 | F48: 60
C49: AGCO Hesston | D49: 956 | E49: 61.5 | F49: 72
C50: AGCO Hesston | D50: 1734 | E50: 39 | F50: 52
C51: AGCO Hesston | D51: 1745 | E51: 46.5 | F51: 60
C52: AGCO Hesston | D52: 1746 | E52: 46.5 | F52: 72
C53: AGCO Hesston | D53: 1756 | E53: 61.5 | F53: 72
C54: AGCO Hesston | D54: 2745 | E54: 46.5 | F54: 60
C55: AGCO Hesston | D55: 2846 | E55: 46.5 | F55: 72
C56: AGCO Hesston | D56: 2856 | E56: 61.5 | F56: 72
C57: AGCO Hesston | D57: 5134 | E57: 39 | F57: 52
C58: AGCO Hesston | D58: 5145 | E58: 46.5 | F58: 60
C59: AGCO Hesston | D59: 5146 | E59: 46.5 | F59: 72
C60: AGCO Hesston | D60: 5156 | E60: 61.5 | F60: 72
C61: AGCO Hesston | D61: 5510 | E61: 60 | F61: 60
C62: AGCO Hesston | D62: 5530 | E62: 39.4 | F62: 52
C63: AGCO Hesston | D63: 5540 | E63: 47 | F63: 72
C64: AGCO Hesston | D64: 5545 | E64: 48 | F64: 70
C65: AGCO Hesston | D65: 5545 | E65: 46.5 | F65: 60
C66: AGCO Hesston | D66: 5546 | E66: 46.5 | F66: 72
C67: AGCO Hesston | D67: 5556 | E67: 61.5 | F67: 72
C68: AGCO Hesston | D68: 5580 | E68: 60 | F68: 72
C69: AGCO Hesston | D69: 5585 | E69: 60 | F69: 70
C70: AGCO Hesston | D70: 5456A | E70: 61.5 | F70: 72
C71: AGCO Hesston | D71: 5546A | E71: 46.5 | F71: 72
C72: AGCO Hesston | D72: 555 S | E72: 46.5 | F72: 75
C73: AGCO Hesston | D73: 555 S | E73: 46.5 | F73: 72
C74: AGCO Hesston | D74: 565A | E74: 61.5 | F74: 72
C75: AGCO Hesston | D75: 565A | E75: 61.5 | F75: 72
C76: AGCO Hesston | D76: 846A | E76: 46.5 | F76: 72
C77: AGCO Hesston | D77: 856A | E77: 61.5 | F77: 72
C78: AGCO Hesston | D78: 856A | E78: 61.5 | F78: 72
C79: Gehl | D79: 1450 | E79: 45 | F79: 60
C80: Gehl | D80: 1460 | E80: 45 | F80: 60
C81: Gehl | D81: 1465 | E81: 45 | F81: 60
C82: Gehl | D82: 1470 | E82: 45 | F82: 60
C83: Gehl | D83: 1475 | E83: 45 | F83: 60
C84: Gehl | D84: 1850 | E84: 61 | F84: 72
C85: Gehl | D85: 1860 | E85: 61 | F85: 72
C86: Gehl | D86: 1865 | E86: 61 | F86: 72
C87: Gehl | D87: 1870 | E87: 61 | F87: 72
C88: Gehl | D88: 1875 | E88: 61 | F88: 72
C89: Gehl | D89: 2580 | E89: 45 | F89: 60
C90: Gehl | D90: 2880 | E90: 61 | F90: 72
C91: Gehl | D91: 1860A | E91: 61 | F91: 72
C92: John Deere | D92: 330 | E92: 46.1 | F92: 51
C93: John Deere | D93: 335 | E93: 46.1 | F93: 51
C94: John Deere | D94: 375 | E94: 61.6 | F94: 51
C95: John Deere | D95: 385 | E95: 46.1 | F95: 60
C96: John Deere | D96: 410 | E96: 48 | F96: 60
C97: John Deere | D97: 430 | E97: 46.1 | F97: 72
C98: John Deere | D98: 435 | E98: 46.1 | F98: 72
C99: John Deere | D99: 446 | E99: 46.1 | F99: 51
C100: John Deere | D100: 447 | E100: 46.1 | F100: 51
C101: John Deere | D101: 448 | E101: 46 | F101: 51
C102: John Deere | D102: 456 | E102: 46.1 | F102: 60
C103: John Deere | D103: 457 | E103: 46.1 | F103: 60
C104: John Deere | D104: 458 | E104: 46.1 | F104: 60
C105: John Deere | D105: 466 | E105: 46.1 | F105: 72
C106: John Deere | D106: 467 | E106: 46.1 | F106: 72
C107: John Deere | D107: 468 | E107: 46 | F107: 72
C108: John Deere | D108: 510 | E108: 63 | F108: 72
C109: John Deere | D109: 530 | E109: 61.6 | F109: 72
C110: John Deere | D110: 535 | E110: 61.6 | F110: 72
C111: John Deere | D111: 546 | E111: 61.6 | F111: 51
C112: John Deere | D112: 547 | E112: 61.6 | F112: 51
C113: John Deere | D113: 566 | E113: 61.6 | F113: 72
C114: John Deere | D114: 567 | E114: 61.6 | F114: 72
C115: John Deere | D115: 568 | E115: 61.6 | F115: 72
C116: John Deere | D116: 582SS | E116: 46.1 | F116: 61
C117: John Deere | D117: 854SS | E117: 46.1 | F117: 60
C118: Krone | D118: 1250 | E118: 48 | F118: 48
C119: Krone | D119: 1800 | E119: 48 | F119: 72
C120: Krone | D120: KR125 | E120: 48 | F120: 48
C121: Krone | D121: KR125B | E121: 48 | F121: 48
C122: Krone | D122: KR130 | E122: 48 | F122: 48
C123: Krone | D123: KR130B | E123: 48 | F123: 48
C124: Krone | D124: KR181 | E124: 60 | F124: 72
C125: Krone | D125: KR230 | E125: 48 | F125: 48
C126: Krone | D126: KR280 | E126: 60 | F126: 72
C127: Krone | D127: VP1800 | E127: 48 | F127: 72
C128: Krone | D128: VP1810 | E128: 48 | F128: 72
C129: New Holland | D129: 630 | E129: 46.5 | F129: 48
C130: New Holland | D130: 634 | E130: 46.5 | F130: 48
C131: New Holland | D131: 638 | E131: 46.5 | F131: 48
C132: New Holland | D132: 640 | E132: 46.5 | F132: 60
C133: New Holland | D133: 644 | E133: 46.5 | F133: 60
C134: New Holland | D134: 648 | E134: 46.5 | F134: 60
C135: New Holland | D135: 650 | E135: 46.5 | F135: 72
C136: New Holland | D136: 654 | E136: 46.5 | F136: 70
C137: New Holland | D137: 658 | E137: 46.5 | F137: 70
C138: New Holland | D138: 660 | E138: 61.5 | F138: 72
C139: New Holland | D139: 664 | E139: 61.5 | F139: 70
C140: New Holland | D140: 668 | E140: 61.5 | F140: 70
C141: New Holland | D141: 688 | E141: 61.5 | F141: 70
C142: New Holland | D142: 847 | E142: 48 | F142: 54
C143: New Holland | D143: 848 | E143: 48 | F143: 54
C144: New Holland | D144: 849 | E144: 57 | F144: 60
C145: New Holland | D145: 852 | E145: 66 | F145: 66
C146: New Holland | D146: 853 | E146: 57 | F146: 60
C147: New Holland | D147: 855 | E147: 66 | F147: 66
C148: New Holland | D148: BR7050 | E148: 46.5 | F148: 48
C149: New Holland | D149: BR7060 | E149: 46.5 | F149: 60
C150: New Holland | D150: BR7070 | E150: 46.5 | F150: 72
C151: New Holland | D151: BR7090 | E151: 61.5 | F151: 72
C152: New Holland | D152: BR730 | E152: 46.5 | F152: 48
C153: New Holland | D153: BR730A | E153: 46.5 | F153: 48
C154: New Holland | D154: BR740 | E154: 46.5 | F154: 60
C155: New Holland | D155: BR740A | E155: 46.5 | F155: 60
C156: New Holland | D156: BR750 | E156: 46.5 | F156: 72
C157: New Holland | D157: BR750A | E157: 46.5 | F157: 72
C158: New Holland | D158: BR780 | E158: 61.5 | F158: 72
C159: New Holland | D159: BR780A | E159: 61.5 | F159: 72
C160: Vermeer | D160: 5400 | E160: 48 | F160: 60
C161: Vermeer | D161: 5500 | E161: 60 | F161: 60
C162: Vermeer | D162: 403F | E162: 36 | F162: 48
C163: Vermeer | D163: 403SG | E163: 36 | F163: 48
C164: Vermeer | D164: 503 l | E164: 36 | F164: 60
C165: Vermeer | D165: 504 I | E165: 48 | F165: 60
C166: Vermeer | D166: 504L | E166: 48 | F166: 60
C167: Vermeer | D167: 504M | E167: 47 | F167: 60
C168: Vermeer | D168: 504M Classic | E168: 47 | F168: 60
C169: Vermeer | D169: 504SG | E169: 48 | F169: 60
C170: Vermeer | D170: 504Sl | E170: 48 | F170: 60
C171: Vermeer | D171: 505 l | E171: 60 | F171: 60
C172: Vermeer | D172: 505L | E172: 60 | F172: 60
C173: Vermeer | D173: 505M Classic | E173: 60 | F173: 60
C174: Vermeer | D174: 505Sl | E174: 60 | F174: 60
C175: Vermeer | D175: 505Sl | E175: 60 | F175: 60
C176: Vermeer | D176: 5400Rebel | E176: 48 | F176: 60
C177: Vermeer | D177: 5410Rebel | E177: 48 | F177: 60
C178: Vermeer | D178: 5500Rebel | E178: 60 | F178: 60
C179: Vermeer | D179: 554XL | E179: 48 | F179: 60
C180: Vermeer | D180: 555XL | E180: 60 | F180: 60
C181: Vermeer | D181: 604J | E181: 48 | F181: 72
C182: Vermeer | D182: 604K | E182: 48 | F182: 72
C183: Vermeer | D183: 604L | E183: 48 | F183: 72
C184: Vermeer | D184: 604L | E184: 48 | F184: 72
C185: Vermeer | D185: 604M | E185: 48 | F185: 72
C186: Vermeer | D186: 604SJ | E186: 48 | F186: 72
C187: Vermeer | D187: 604SM | E187: 48 | F187: 72
C188: Vermeer | D188: 604XL | E188: 48 | F188: 72
C189: Vermeer | D189: 605H | E189: 60 | F189: 72
C190: Vermeer | D190: 605J | E190: 60 | F190: 72
C191: Vermeer | D191: 605K | E191: 60 | F191: 72
C192: Vermeer | D192: 605L | E192: 60 | F192: 72
C193: Vermeer | D193: 605M | E193: 60 | F193: 72
C194: Vermeer | D194: 605SJ | E194: 60 | F194: 72
C195: Vermeer | D195: 605SM | E195: 60 | F195: 72
C196: Vermeer | D196: 605XL | E196: 60 | F196: 72
C197: Vermeer | D197: Ensiler | E197: 48 | F197: 60
